Cogmind - Beta 11.1 --- EXPLORER MODE // 2022.06.13 @ 22:45:55 // Winter2019/RPGLIKE Player: Grimbling Result: Destroyed by Architect with Modified Sigix Sheargun Performance ------------- Evolutions (9) 4500 Regions Visited (34) 6800 Robots Destroyed (645) 3225 Value Destroyed (39976) 39976 Prototype IDs (281) 5620 Alien Tech Used (11) 2200 Bonus (32076) 32076 TOTAL SCORE: 94397 Bonus ------- High Alert Combat Kills 2374 Follower Combat Kills 1480 Entered DSFs 500 Network Hubs Disabled 800 Met Data Miner 300 Met Zhirov 300 Built Enhanced Grunts 300 Met R17 at Cetus 500 Used Core Reset Matrix 3000 Acquired SGEMP 2000 Destroyed MAIN.C Guards 500 Met MAIN.C 5000 Destroyed MAIN.C Shell 5000 Destroyed MAIN.C 10000 Met Architect 300 Started Test 138-B 500 Destroyed A8 300 Destroyed A6 400 Destroyed A5 500 Destroyed A4 700 Destroyed A2 1000 Friendly Fire -3678 Cogmind --------- Core Integrity 0/1500 Matter 290/300 Energy 1666/1690 System Corruption 2% Temperature Cool (0) Movement Treading (160) Location -1/Access_0 Parts ------- > --- POWER (4) -------- Quantum Reactor Zero-point Reactor Vortex Chain Reactor > --- PROPULSION (4) --- Enhanced Armored Heavy Treads High-density Centrium Heavy Treads > --- UTILITY (11) ----- Experimental Power Amplifier Advanced Signal Interpreter Advanced Terrain Scanner Experimental Core Analyzer Particle Accelerator Experimental Weapon Cycler Centrium Light Armor Plating Experimental Powered Armor Graphene Brace Advanced Thermal Shield AEGIS Remote Shield > --- WEAPON (6) ------- Heavy Gatling Laser Heavy Gatling Laser Heavy Gatling Laser Heavy Gatling Laser Long-range Gatling Laser Long-range Gatling Laser > --- INVENTORY (10) --- Protomatter-2 Advanced Weapon Cycler Experimental Shock Absorption System Experimental EM Disruption Field High-powered Transdimensional Reconstructor Heavy Quantum Rifle Improved Potential Cannon Sigix Corpse Peak State ------------ > --- POWER ------------ Quantum Reactor Zero-point Reactor Vortex Chain Reactor > --- PROPULSION ------- Enhanced Armored Heavy Treads High-density Centrium Heavy Treads > --- UTILITY ---------- Experimental Power Amplifier Advanced Signal Interpreter Advanced Terrain Scanner Experimental Core Analyzer Particle Accelerator Advanced Weapon Cycler Experimental Powered Armor Graphene Brace Advanced Thermal Shield Experimental EM Disruption Field AEGIS Remote Shield > --- WEAPON ----------- Heavy Gatling Laser Heavy Gatling Laser Long-range Gatling Laser Long-range Gatling Laser Improved Potential Cannon > --- INVENTORY -------- Centrium Light Armor Plating Experimental Shock Absorption System High-powered Transdimensional Reconstructor Heavy Gatling Laser Heavy Gatling Laser Heavy Gatling Laser Heavy Quantum Rifle Sigix Corpse [Rating: 230] Favorites ----------- Power Quantum Reactor Engine Light Angular Momentum Engine Power Core Light Nuclear Core Reactor Quantum Reactor Propulsion Centrium Heavy Treads Treads Centrium Heavy Treads Utility Advanced Signal Interpreter Device Improved Terrain Scanner Storage Energy Well Processor Advanced Signal Interpreter Protection Medium Reflective Plating Weapon Heavy Gatling Laser Energy Gun Heavy Gatling Laser Energy Cannon Beam Cannon Ballistic Gun Heavy Assault Rifle Launcher Improved Grenade Launcher Build | -11 -10 -10 -9 -9 -9 -8 -8 -7 -7 -6 -6 -6 -6 -5 -5 -5 -5 -5 -5 -5 -5 -4 -4 -4 -4 -3 -3 -3 -2 -2 -2 -1 -1 -1 ------- Run | Scr Mat Min Mat Min Exi Min Mat Fac DSF Fac Low Low Dat Pro Fac Was Fac Ext Cet Arc Hub Fac Upp Upp Zhi Pro Res Qua Res Tes Sec Acc Com Ac0 Slots Evolved 21 | 4 . . 3 1 . 2 1 1 . 1 . . . 1 1 . . 1 . . 2 . . . . . 1 . 1 . . 1 . . Power 3 | . . . 1 . . . . . . . . . . . . . . 1 . . 1 . . . . . . . . . . . . . Propulsion 3 | 1 . . . . . 2 . . . . . . . . . . . . . . . . . . . . . . . . . . . . Utility 10 | 2 . . . 1 . . . 1 . 1 . . . 1 1 . . . . . 1 . . . . . 1 . . . . 1 . . Weapon 5 | 1 . . 2 . . . 1 . . . . . . . . . . . . . . . . . . . . . 1 . . . . . Parts Attached 302 | 8 8 2 16 1 . 6 15 1 12 4 2 . . 1 8 5 1 7 13 1 10 6 . 2 4 1 24 17 14 28 38 5 22 20 Power 30 | 1 . . 3 . . 1 2 . . 1 1 . . . . 1 . 1 2 1 1 . . . 1 . 1 5 2 1 1 2 2 . Engine 8 | 1 . . 3 . . . 1 . . 1 1 . . . . . . 1 . . . . . . . . . . . . . . . . Core 2 | . . . . . . 1 1 . . . . . . . . . . . . . . . . . . . . . . . . . . . Reactor 20 | . . . . . . . . . . . . . . . . 1 . . 2 1 1 . . . 1 . 1 5 2 1 1 2 2 . Propulsion 22 | 2 2 . . . . 2 1 . 8 . . . . . 1 . . 2 2 . . . . . . . . . . . . . 2 . Treads 22 | 2 2 . . . . 2 1 . 8 . . . . . 1 . . 2 2 . . . . . . . . . . . . . 2 . Leg . | . . . . . . . . . . . . . . . . . . . . . . . . . . . . . . . . . . . Wheel . | . . . . . . . . . . . . . . . . . . . . . . . . . . . . . . . . . . . Hover . | . . . . . . . . . . . . . . . . . . . . . . . . . . . . . . . . . . . Flight . | . . . . . . . . . . . . . . . . . . . . . . . . . . . . . . . . . . . Utility 122 | 3 . . . 1 . 2 4 1 2 2 . . . 1 4 . . 4 5 . 6 5 . 2 3 1 8 6 9 11 27 3 3 9 Device 86 | 1 . . . 1 . 1 1 1 . 1 . . . 1 3 . . 2 2 . 5 3 . 1 3 1 6 6 9 8 19 3 3 5 Storage 1 | . . . . . . . . . . . . . . . . . . 1 . . . . . . . . . . . . . . . . Processor 14 | . . . . . . . 1 . . 1 . . . . 1 . . 1 . . 1 . . 1 . . 1 . . . 7 . . . Hackware . | . . . . . . . . . . . . . . . . . . . . . . . . . . . . . . . . . . . Protection 21 | 2 . . . . . 1 2 . 2 . . . . . . . . . 3 . . 2 . . . . 1 . . 3 1 . . 4 Artifact . | . . . . . . . . . . . . . . . . . . . . . . . . . . . . . . . . . . . Weapon 128 | 2 6 2 13 . . 1 8 . 2 1 1 . . . 3 4 1 . 4 . 3 1 . . . . 15 6 3 16 10 . 15 11 Energy Gun 113 | 2 2 1 12 . . 1 7 . 1 1 1 . . . 3 4 1 . 3 . 3 1 . . . . 15 5 3 14 10 . 13 10 Energy Cannon 11 | . 2 1 1 . . . 1 . 1 . . . . . . . . . . . . . . . . . . 1 . 1 . . 2 1 Ballistic Gun 3 | . 2 . . . . . . . . . . . . . . . . . . . . . . . . . . . . 1 . . . . Ballistic Cannon . | . . . . . . . . . . . . . . . . . . . . . . . . . . . . . . . . . . . Launcher 1 | . . . . . . . . . . . . . . . . . . . 1 . . . . . . . . . . . . . . . Special Weapon . | . . . . . . . . . . . . . . . . . . . . . . . . . . . . . . . . . . . Impact Weapon . | . . . . . . . . . . . . . . . . . . . . . . . . . . . . . . . . . . . Slashing Weapon . | . . . . . . . . . . . . . . . . . . . . . . . . . . . . . . . . . . . Piercing Weapon . | . . . . . . . . . . . . . . . . . . . . . . . . . . . . . . . . . . . Special Melee Weapon . | . . . . . . . . . . . . . . . . . . . . . . . . . . . . . . . . . . . Unidentified Prototypes 50 | . . . 1 1 . . 5 . 1 . . . . . . . . . 5 . 4 1 . 1 3 . 4 3 3 7 7 1 1 2 Corrupted Parts 1 | . . . . . . . . . . . . . . . . . . . 1 . . . . . . . . . . . . . . . System Corruption 4 | . . . . . . . . . . . . . . . . . . . 4 . . . . . . . . . . . . . . . Parts Lost . | . . . . . . . . . . . . . . . . . . . . . . . . . . . . . . . . . . . Power . | . . . . . . . . . . . . . . . . . . . . . . . . . . . . . . . . . . . Propulsion . | . . . . . . . . . . . . . . . . . . . . . . . . . . . . . . . . . . . Utility . | . . . . . . . . . . . . . . . . . . . . . . . . . . . . . . . . . . . Weapon . | . . . . . . . . . . . . . . . . . . . . . . . . . . . . . . . . . . . Highest Loss Streak . | . . . . . . . . . . . . . . . . . . . . . . . . . . . . . . . . . . . To Critical Strikes . | . . . . . . . . . . . . . . . . . . . . . . . . . . . . . . . . . . . Average Slot Usage (%) 92 | . 97 100 98 93 91 99 99 97 100 95 99 100 100 100 95 94 94 94 92 89 89 88 86 88 89 90 87 90 90 90 90 91 91 87 Engine 4 | . 12 12 18 16 16 13 11 12 12 11 11 11 11 11 10 7 5 8 6 . . . . . . . . . . . . . . . Reactor 10 | . . . . . . . . . . . . . . . . 2 5 5 8 14 15 18 18 18 18 18 17 16 16 15 16 15 15 12 Treads 12 | . 25 25 19 16 16 28 27 25 25 23 23 23 23 22 16 15 15 15 13 10 9 9 9 9 9 9 8 8 8 8 8 8 8 8 Device 24 | . 12 12 9 14 16 13 7 9 12 11 11 11 11 15 20 21 21 19 20 20 20 26 27 26 29 31 31 33 33 32 29 30 32 30 Processor 6 | . . . . . . . 5 6 6 6 11 11 11 11 10 10 10 10 10 10 9 4 4 7 6 4 4 4 4 4 7 8 8 8 Protection 7 | . 25 25 19 10 8 13 13 12 12 11 11 11 11 11 10 10 10 10 9 10 9 7 4 4 4 4 3 4 4 3 3 4 4 4 Energy Gun 24 | . 9 . 25 33 33 28 29 31 31 29 28 29 29 27 26 26 26 25 24 25 24 22 22 22 22 22 20 21 24 24 25 24 23 23 Naked Turns . | . . . . . . . . . . . . . . . . . . . . . . . . . . . . . . . . . . . Heaviest Build 156 | 14 18 18 35 46 46 49 47 47 64 67 66 65 65 66 77 89 89 111 109 110 134 135 128 128 131 131 133 139 146 154 143 142 156 155 Greatest Support 170 | 40 46 46 46 46 46 92 92 89 112 112 112 112 112 112 126 126 126 130 160 160 160 160 160 160 160 160 160 160 160 160 160 160 170 170 Greatest Overweight (x) 1 | . . . . . . . . . . . . . . . . . . . . . . . . . . . . . . . . . 1 . Average Overweight (x) . | . . . . . . . . . . . . . . . . . . . . . . . . . . . . . . . . . . . Largest Inventory Capacity 10 | 4 4 4 4 4 4 4 4 4 4 4 4 4 4 4 5 5 5 5 5 5 5 5 5 5 5 5 5 7 7 7 10 10 10 10 Average Capacity 6 | 4 4 4 4 4 4 4 4 4 4 4 4 4 4 4 4 5 5 5 5 5 5 5 5 5 5 5 5 6 7 7 8 10 10 10 Most Carried 10 | . 4 4 4 4 4 4 4 3 4 4 4 4 4 4 5 5 5 5 5 5 5 5 5 5 5 5 5 7 7 7 10 10 10 10 Average Carried 5 | . 1 3 3 3 4 1 3 3 3 3 4 4 4 3 4 5 4 4 4 5 4 4 4 4 5 4 4 5 6 6 8 9 9 8 Final Capacity 10 | 4 4 4 4 4 4 4 4 4 4 4 4 4 4 4 5 5 5 5 5 5 5 5 5 5 5 5 5 7 7 7 10 10 10 10 Final Carried 10 | . 2 4 3 4 4 3 3 3 3 4 4 4 4 3 5 5 5 4 5 5 4 5 5 5 5 5 4 7 7 7 10 10 9 9 Class Distribution -------------------- 38% | Generator-Executioner 26% | Hacker-Skirmisher 12% | Scavenger-Skirmisher 12% | Generator-Tank 6% | Scavenger-Tank Dominant Class ---------------- Hacker-Skirmisher | -10/Materials Hacker-Skirmisher | -10/Mines Hacker-Skirmisher | -9/Materials Hacker-Skirmisher | -9/Mines Hacker-Skirmisher | -9/Exiles Hacker-Skirmisher | -8/Mines Hacker-Skirmisher | -8/Materials Hacker-Skirmisher | -7/Factory Hacker-Skirmisher | -7/DSF Hacker-Skirmisher | -6/Factory Hacker-Skirmisher | -6/Lower Caves Hacker-Skirmisher | -6/Lower Caves Hacker-Skirmisher | -6/Data Miner Hacker-Tank | -5/Proximity Caves Scavenger-Skirmisher | -5/Factory Hacker-Skirmisher | -5/Waste Hacker-Skirmisher | -5/Factory Scavenger-Skirmisher | -5/Extension Scavenger-Skirmisher | -5/Cetus Scavenger-Skirmisher | -5/Archives Scavenger-Skirmisher | -5/Hub_04(d) Scavenger-Tank | -4/Factory Scavenger-Tank | -4/Upper Caves Scavenger-Tank | -4/Upper Caves Scavenger-Tank | -4/Zhirov Generator-Tank | -3/Proximity Caves Generator-Tank | -3/Research Generator-Tank | -3/Quarantine Generator-Executioner | -2/Research Generator-Executioner | -2/Testing Generator-Executioner | -2/Section 7 Generator-Executioner | -1/Access Generator-Executioner | -1/Command Generator-Executioner | -1/Access_0 Resources | -11 -10 -10 -9 -9 -9 -8 -8 -7 -7 -6 -6 -6 -6 -5 -5 -5 -5 -5 -5 -5 -5 -4 -4 -4 -4 -3 -3 -3 -2 -2 -2 -1 -1 -1 ----------- Run | Scr Mat Min Mat Min Exi Min Mat Fac DSF Fac Low Low Dat Pro Fac Was Fac Ext Cet Arc Hub Fac Upp Upp Zhi Pro Res Qua Res Tes Sec Acc Com Ac0 Matter Collected 3390 | 280 60 38 160 18 . 60 145 10 26 134 20 . . 10 90 50 20 86 170 . 186 60 . 30 50 10 200 230 56 437 366 57 115 216 Remotely . | . . . . . . . . . . . . . . . . . . . . . . . . . . . . . . . . . . . Salvage Created 30002 | 177 122 72 754 261 . 77 1592 . 237 592 498 174 . 72 1527 463 96 994 820 173 1869 561 172 29 599 207 1275 830 1904 1911 2705 3777 3530 1932 Parts 1241 | 15 8 5 47 7 . 4 75 . 15 37 21 15 . . 60 2 5 39 48 9 90 44 5 4 4 9 63 30 78 62 130 147 111 52 Haulers Intercepted 19 | . . . . . . . 4 . 1 . . . . . 4 . . . . . 1 2 . . . . . . 1 1 4 1 . . Recyclers Shooed 5 | . . . . . . . 4 . . . . . . . . . . . . . . . . . . . . . . . . 1 . . Parts Field Recycled . | . . . . . . . . . . . . . . . . . . . . . . . . . . . . . . . . . . . Retrieved Matter . | . . . . . . . . . . . . . . . . . . . . . . . . . . . . . . . . . . . Parts Self-Destructed . | . . . . . . . . . . . . . . . . . . . . . . . . . . . . . . . . . . . Prevented . | . . . . . . . . . . . . . . . . . . . . . . . . . . . . . . . . . . . Kills | -11 -10 -10 -9 -9 -9 -8 -8 -7 -7 -6 -6 -6 -6 -5 -5 -5 -5 -5 -5 -5 -5 -4 -4 -4 -4 -3 -3 -3 -2 -2 -2 -1 -1 -1 ------- Run | Scr Mat Min Mat Min Exi Min Mat Fac DSF Fac Low Low Dat Pro Fac Was Fac Ext Cet Arc Hub Fac Upp Upp Zhi Pro Res Qua Res Tes Sec Acc Com Ac0 Combat Hostiles Destroyed 490 | . 1 2 19 5 . 2 22 . 3 15 9 4 . 1 17 2 . 7 15 3 25 8 5 3 . 5 29 20 33 38 48 54 61 34 Guns 430 | . 1 . 14 5 . 2 21 . 3 14 9 4 . 1 16 1 . 7 15 3 22 8 5 3 . 5 25 19 30 31 44 54 52 16 Cannons 8 | . . 2 5 . . . . . . . . . . . . . . . . . . . . . . . . . . . . . 1 . Classes Destroyed 25 | 3 2 . 3 . . 1 4 . 2 . . . . . 1 1 . 1 . . 1 . . . . . . . . 4 . . 2 . Worker 16 | 2 1 . . . . . 2 . . . . . . . 1 . . . . . 3 . . . . . . . 1 1 . 3 2 . Builder 13 | . . . . . . . 2 . . . . . . . 1 . 1 1 . . 1 3 . . . . . . 2 . 2 . . . Tunneler 8 | 4 . . . . . 1 3 . . . . . . . . . . . . . . . . . . . . . . . . . . . Hauler 19 | . . . . . . . 4 . 1 . . . . . 4 . . . . . 1 2 . . . . . . 1 1 4 1 . . Recycler 9 | 1 . . . 1 . . 1 . . . . . . . . . . 2 . . . 1 . . . . . . . . . 1 2 . Carrier 3 | . . . . . . . . . . . . . . . . . . 1 . . . . . . . . . . . . 1 1 . . Operator 18 | . . . 1 . . . 2 . . 1 . . . . . . 2 1 . 1 3 . . . . . 1 3 1 . 1 1 . . Watcher 56 | . 2 . 4 . . . 3 . . 2 . . . . 2 . 2 2 . . 3 1 . . . . 3 3 9 3 4 8 5 . Swarmer 91 | . . . 7 3 . . 3 . . 7 1 . . . . . . 1 6 . 3 3 3 3 . 4 . 5 8 . 9 14 11 . Saboteur 1 | . . . . . . . . . . . . . . . . . . . . . . . . . . . . . . . . . 1 . Grunt 112 | . 1 2 4 2 . 1 8 . . 3 3 . . . 10 . . 1 . . 5 . 2 . . . 10 7 4 11 10 16 12 . Brawler 9 | . . . . . . 1 . . . 1 3 . . . 1 . . . . . 1 . . . . . . . . . . 1 1 . Duelist 8 | . . . . . . . 2 . . . . . . . . . . . 1 . . . . . . . . . 2 . . 1 2 . Protector 3 | . . . . . . . . . . . . . . . . . . . . . 3 . . . . . . . . . . . . . Researcher 6 | . . . . . . . . . . . . . . . . . . . . . . . . . . . . . . 2 4 . . . Sentry 60 | . . . 8 . . . 8 . . 3 2 1 . . 1 . . 3 . 3 2 1 . . . . 3 . 4 . 9 5 7 . Specialist 2 | . . . . . . . . . 2 . . . . . . . . . . . . . . . . . . . . . . . . . Hunter 41 | . . . . . . . 1 . . . . 2 . 1 . . . . 2 . . . . . . 1 4 . 8 7 5 7 3 . Programmer 83 | . . . . . . . . . 1 1 . 1 . . 4 . . . . . 2 4 . . . . 12 8 6 14 11 10 9 . Behemoth 8 | . . . . . . . . . . . . . . . 1 . . 2 . . . . . . . . . . 1 . 2 . 2 . Compactor 2 | . . . . . . . . . . . . . . . . 2 . . . . . . . . . . . . . . . . . . Cetus Guard 6 | . . . . . . . . . . . . . . . . . . . 6 . . . . . . . . . . . . . . . M Guard 2 | . . . . . . . . . . . . . . . . . . . . . . . . . . . . . . . . . 2 . Enhanced Grunt 19 | . . . . . . . . . . . . . . . . . . . . . 2 . . . . . . . . . . . . 17 Enhanced Sentry 4 | . . . . . . . . . . . . . . . . . . . . . . . . . . . . . . . . . . 4 Enhanced Hunter 8 | . . . . . . . . . . . . . . . . . . . . . . . . . . . . . . . . . . 8 Lightning 9 | . . . . . . . . . . . . . . . . . . . . . 9 . . . . . . . . . . . . . Combat Programmer 2 | . . . . . . . . . . . . . . . . . . . . . . . . . . . . . . . . . 2 . Striker 4 | . . . . . . . . . . . . . . . . . . . . . . . . . . . . . . 2 . . 2 . Executioner 4 | . . . . . . . . . . . . . . . . . . . . . . . . . . . . . . . . . 4 . Alpha 7 6 | . . . . . . . . . . . . . . . . . . . . . . . . . . . . . . 2 2 . 2 . Fortress 1 | . . . . . . . . . . . . . . . . . . . . . . . . . . . . . . 1 . . . . Protovariant Y 1 | . . . . . . . . . . . . . . . . . . . . . . . . . . . . . . 1 . . . . Best Kill Streak 12 | 3 4 1 3 6 . 3 8 . 2 9 8 3 . 1 5 1 3 6 4 3 9 4 3 3 . 4 4 5 7 6 12 9 9 6 Combat Bots Only 10 | . 1 1 3 5 . 2 7 . 2 8 8 3 . 1 4 1 . 4 4 3 8 3 3 3 . 4 3 3 7 4 10 7 9 6 Max Kills in Single Turn 3 | 1 1 1 2 2 . 1 2 . 1 3 2 1 . 1 2 1 3 1 2 1 2 2 2 2 . 2 3 2 3 2 3 3 2 1 Gunslinging 2 | . . . . 1 . . 1 . . 2 1 . . . 1 . . . 1 . 1 . 1 1 . 1 . 1 1 . 1 1 1 . Exploded . | . . . . . . . . . . . . . . . . . . . . . . . . . . . . . . . . . . . Melee . | . . . . . . . . . . . . . . . . . . . . . . . . . . . . . . . . . . . Uniques/NPCs Destroyed 12 | . . . . . . . . . . . . . . . . . . . 2 . . . . . . . . . . . . 3 2 5 A7 (-5/Cetus) Revision 17 (-5/Cetus) Svarog (-1/Access) Zhirov (-1/Access) Perun (-1/Access) MAIN.C Shell (-1/Command) MAIN.C (-1/Command) A8 (-1/Access_0) A6 (-1/Access_0) A5 (-1/Access_0) A2 (-1/Access_0) A4 (-1/Access_0) Combat | -11 -10 -10 -9 -9 -9 -8 -8 -7 -7 -6 -6 -6 -6 -5 -5 -5 -5 -5 -5 -5 -5 -4 -4 -4 -4 -3 -3 -3 -2 -2 -2 -1 -1 -1 -------- Run | Scr Mat Min Mat Min Exi Min Mat Fac DSF Fac Low Low Dat Pro Fac Was Fac Ext Cet Arc Hub Fac Upp Upp Zhi Pro Res Qua Res Tes Sec Acc Com Ac0 Damage Taken 12289 | . 6 47 258 56 . . 376 . 27 110 176 44 . 23 333 . 24 80 126 33 436 81 56 23 . 50 131 121 375 1193 512 615 1227 5750 Core 8693 | . 4 32 168 33 . . 271 . 17 65 107 26 . 14 199 . 16 51 83 13 294 47 38 13 . 30 88 82 268 844 347 407 896 4240 Absorbed by Shields 10813 | . . . . . . . . . 12 119 77 23 . 11 143 . 24 88 145 36 459 84 63 27 . 55 149 133 407 1137 473 538 1146 5464 Redirected to Core 7700 | . 4 32 151 33 . . 268 . 17 60 104 19 . 14 187 . 16 51 76 13 280 47 38 13 . 30 77 76 233 780 334 372 807 3568 Regen/Repaired (Parts) 125 | . . . . . . . . . . . . . . . . . . 33 . . . . . . . . . . . . 92 . . . Core Remaining (%) 97 | 100 . 100 . . . 100 88 . 86 . . . . 100 . . . . . . 100 . . . . 99 . 100 . . 99 . . . Volleys Fired 1018 | 12 9 5 34 5 . 4 53 . 4 20 11 5 . 2 36 3 6 20 23 5 64 14 8 3 24 7 36 40 43 107 64 60 105 186 Largest 6 | 2 2 2 4 4 . 4 5 . 5 5 5 5 . 5 5 5 5 5 5 5 5 5 5 5 5 5 5 5 6 6 6 6 6 6 Hottest 620 | 80 120 120 220 220 . 220 281 . 281 295 295 295 . 295 355 375 375 375 385 385 397 397 381 381 381 381 500 500 600 600 600 600 600 620 Shots Fired 4999 | 24 18 10 94 20 . 17 218 . 20 98 52 25 . 10 171 15 30 98 103 23 302 70 40 15 28 32 177 200 255 643 374 360 568 889 Gun 4940 | 24 16 . 62 20 . 17 218 . 20 98 52 25 . 10 171 15 30 98 101 23 302 70 40 15 28 32 177 200 255 643 374 360 558 886 Cannon 57 | . 2 10 32 . . . . . . . . . . . . . . . . . . . . . . . . . . . . . 10 3 Launcher 2 | . . . . . . . . . . . . . . . . . . . 2 . . . . . . . . . . . . . . . Special . | . . . . . . . . . . . . . . . . . . . . . . . . . . . . . . . . . . . Kinetic . | . . . . . . . . . . . . . . . . . . . . . . . . . . . . . . . . . . . Thermal 4997 | 24 18 10 94 20 . 17 218 . 20 98 52 25 . 10 171 15 30 98 101 23 302 70 40 15 28 32 177 200 255 643 374 360 568 889 Explosive 2 | . . . . . . . . . . . . . . . . . . . 2 . . . . . . . . . . . . . . . Electromagnetic . | . . . . . . . . . . . . . . . . . . . . . . . . . . . . . . . . . . . Robot Hit Streak 126 | 14 12 15 34 16 . 14 37 . 16 21 66 68 . 16 34 20 22 49 36 52 82 15 23 11 21 46 58 95 82 90 94 53 117 126 Robot Miss Streak 3 | 1 1 1 2 1 . 1 3 . . 2 . 1 . 1 3 . 2 2 1 . 1 2 1 1 . . 2 3 1 2 2 2 2 2 Penetration Max . | . . . . . . . . . . . . . . . . . . . . . . . . . . . . . . . . . . . Secondary Targets 83 | . . . . 2 . . 4 . 1 6 6 2 . . 4 . . 1 6 . 10 1 2 2 . 2 1 2 3 2 7 8 10 1 Max Gunslinging Chain 2 | . . . . 1 . . 1 . 1 2 2 1 . . 1 . . 1 1 . 2 1 1 2 . 1 1 1 1 1 1 1 1 1 Shots Hit Robots 4109 | 19 12 8 67 16 . 15 158 . 13 64 45 17 . 8 123 12 7 63 84 16 202 34 28 7 19 25 160 117 224 583 308 309 491 855 Core Hits 2769 | 8 6 4 49 6 . 5 56 . 7 33 18 8 . 3 54 4 4 27 43 9 88 20 8 3 7 8 89 71 136 389 207 211 372 816 Critical Kills 1 | . . . . . . . . . . . . . . . . . . . . . . . . . . . . . . . . . 1 . Critical Parts Destroyed . | . . . . . . . . . . . . . . . . . . . . . . . . . . . . . . . . . . . Critical Strikes 43 | . . . 1 2 . . 9 . . 2 1 3 . 1 8 3 . 4 4 2 1 1 . . . . . . . . . . 1 . Burn 42 | . . . 1 2 . . 9 . . 2 1 3 . 1 8 3 . 4 4 2 1 1 . . . . . . . . . . . . Meltdown 1 | . . . . . . . . . . . . . . . . . . . . . . . . . . . . . . . . . 1 . Melee Attacks . | . . . . . . . . . . . . . . . . . . . . . . . . . . . . . . . . . . . Impact . | . . . . . . . . . . . . . . . . . . . . . . . . . . . . . . . . . . . Slashing . | . . . . . . . . . . . . . . . . . . . . . . . . . . . . . . . . . . . Piercing . | . . . . . . . . . . . . . . . . . . . . . . . . . . . . . . . . . . . Sneak Attacks . | . . . . . . . . . . . . . . . . . . . . . . . . . . . . . . . . . . . Combat Hostiles . | . . . . . . . . . . . . . . . . . . . . . . . . . . . . . . . . . . . Follow-up Attacks . | . . . . . . . . . . . . . . . . . . . . . . . . . . . . . . . . . . . Damage Inflicted 152624 | 213 144 150 1113 326 . 288 3266 . 256 1286 918 380 . 174 3441 353 368 2026 2757 522 7725 1541 1022 243 1198 903 6267 4461 7588 13541 11061 10709 18939 49445 Guns 148248 | 213 144 . 695 307 . 288 3212 . 256 1286 918 380 . 174 3330 353 213 1965 2586 522 7093 1541 1022 237 1198 903 6267 4461 7582 13541 11061 10662 16710 49128 Cannons 2006 | . . 142 413 . . . . . . . . . . . . . . . . . . . . . . . . . . . . . 1264 187 Explosions 2102 | . . . . . . . . . . . . . . . 83 . 155 . 171 . 598 . . . . . . . . . . . 965 130 Melee . | . . . . . . . . . . . . . . . . . . . . . . . . . . . . . . . . . . . Ramming 268 | . . 8 5 19 . . 54 . . . . . . . 28 . . 61 . . 34 . . 6 . . . . 6 . . 47 . . Kinetic . | . . . . . . . . . . . . . . . . . . . . . . . . . . . . . . . . . . . Thermal 151504 | 213 144 142 1108 307 . 288 3212 . 256 1286 918 380 . 174 3330 353 368 1965 2586 522 7093 1541 1022 237 1198 903 6267 4461 7582 13541 11061 10662 18939 49445 Explosive 254 | . . . . . . . . . . . . . . . 83 . . . 171 . . . . . . . . . . . . . . . Electromagnetic 598 | . . . . . . . . . . . . . . . . . . . . . 598 . . . . . . . . . . . . . Impact . | . . . . . . . . . . . . . . . . . . . . . . . . . . . . . . . . . . . Slashing . | . . . . . . . . . . . . . . . . . . . . . . . . . . . . . . . . . . . Piercing . | . . . . . . . . . . . . . . . . . . . . . . . . . . . . . . . . . . . Highest Corruption 11 | . . . 1 1 1 1 . . . . . . . . 1 1 2 2 6 6 11 . . . . . . . . 1 1 1 1 2 Average Corruption 1 | . . . 1 1 1 1 . . . . . . . . 1 1 1 2 2 6 8 . . . . . . . . 1 1 1 1 1 Corruption Purged . | . . . . . . . . . . . . . . . . . . . . . . . . . . . . . . . . . . . Corruption Blocked . | . . . . . . . . . . . . . . . . . . . . . . . . . . . . . . . . . . . Effects 197 | . . . 4 3 1 2 . . . . . . . . 6 2 3 20 12 3 55 . . . . . . . . 14 3 18 15 36 Message Errors 40 | . . . 1 1 1 . . . . . . . . . 1 . 1 4 4 . 10 . . . . . . . . 3 . 5 4 5 Matter Fused 50 | . . . 1 1 . . . . . . . . . . 2 . 2 2 2 1 9 . . . . . . . . 6 1 5 4 14 Heat Flow Errors 24 | . . . . 1 . . . . . . . . . . 2 2 . 2 1 1 5 . . . . . . . . 2 . 2 1 5 Energy Discharges 23 | . . . . . . . . . . . . . . . 1 . . 4 1 1 9 . . . . . . . . 1 1 3 1 1 Parts Rejected 3 | . . . . . . . . . . . . . . . . . . 1 . . . . . . . . . . . . . . . 2 Data Loss (minor) 24 | . . . 2 . . 1 . . . . . . . . . . . 4 3 . 8 . . . . . . . . 1 . 2 1 2 Data Loss (major) 11 | . . . . . . . . . . . . . . . . . . . 1 . 6 . . . . . . . . . 1 1 . 2 Misfires 8 | . . . . . . 1 . . . . . . . . . . . 2 . . 1 . . . . . . . . 1 . . 1 2 Alerts 4 | . . . . . . . . . . . . . . . . . . 1 . . . . . . . . . . . . . . 2 1 Weapon Failures 10 | . . . . . . . . . . . . . . . . . . . . . 7 . . . . . . . . . . . 1 2 Overload Shots . | . . . . . . . . . . . . . . . . . . . . . . . . . . . . . . . . . . . Overflow Damage 79 | . . . . . . . . . . . . . . . . . 33 . . . 15 . . 4 . . . . . . . . 27 . Projectiles 27 | . . . . . . . . . . . . . . . . . . . . . . . . . . . . . . . . . 27 . Explosions 48 | . . . . . . . . . . . . . . . . . 33 . . . 15 . . . . . . . . . . . . . Melee 4 | . . . . . . . . . . . . . . . . . . . . . . . . 4 . . . . . . . . . . Knockbacks 3 | . . . . . . . . . . . . . . . . . . 1 . . 1 . . . . . . . . . . 1 . . Impact 3 | . . . . . . . . . . . . . . . . . . 1 . . 1 . . . . . . . . . . 1 . . Kinetic . | . . . . . . . . . . . . . . . . . . . . . . . . . . . . . . . . . . . Secondary . | . . . . . . . . . . . . . . . . . . . . . . . . . . . . . . . . . . . Self-Inflicted Damage 197 | . . . . . . . . . . . . . . . 33 . . . . . 129 . . . . . . . . . . . . 35 Shots 4 | . . . . . . . . . . . . . . . 1 . . . . . 2 . . . . . . . . . . . . 1 Rammed 29 | . . 2 3 5 . . 9 . . . . . . . 2 . . 2 . . 2 . . 1 . . . . 1 . . 2 . . Targets Rammed 34 | . . 2 3 6 . . 11 . . . . . . . 2 . . 3 . . 2 . . 1 . . . . 1 . . 3 . . Kicked . | . . . . . . . . . . . . . . . . . . . . . . . . . . . . . . . . . . . Crushed 5 | . . . . 1 . . 2 . . . . . . . . . . 1 . . . . . . . . . . . . . 1 . . Highest Temperature 472 | 144 222 261 274 186 . . 6 . . . . . . . 88 125 6 129 75 114 204 252 96 90 . . . . . 472 360 38 . 151 Average Temperature 95 | 57 107 116 150 100 . . 2 . . . . . . . 69 31 4 11 21 35 68 75 48 45 . . . . . 134 100 38 . 60 Received Heat Transfer 1688 | . 6 42 120 21 . . 243 . . 51 88 15 . . 84 . . 21 16 4 57 8 10 . . . 27 22 40 186 48 45 123 411 Effects 7 | . 1 . . . . . . . . . . . . . . . . . . . . . . . . . . . . 5 1 . . . Shutdowns 3 | . . . . . . . . . . . . . . . . . . . . . . . . . . . . . . 2 1 . . . Energy Bleed 3 | . 1 . . . . . . . . . . . . . . . . . . . . . . . . . . . . 2 . . . . Matter Decay 1 | . . . . . . . . . . . . . . . . . . . . . . . . . . . . . . 1 . . . . Siege Activations . | . . . . . . . . . . . . . . . . . . . . . . . . . . . . . . . . . . . Robots Corrupted 1 | . . . . . . . . . . . . . . . . . . . . . 1 . . . . . . . . . . . . . Combat Hostiles . | . . . . . . . . . . . . . . . . . . . . . . . . . . . . . . . . . . . Parts Fried 8 | . . . . . . . . . . . . . . . . . . . 2 . 5 . . . . . . . . . . . 1 . Impact Corruptions 2 | . . . . . . . . . . . . . . . . . . . . . . . . 2 . . . . . . . . . . Robots Melted 56 | . . . . . . . 1 . . 1 . . . . 1 1 . . . . 3 . . . . . 4 1 3 8 4 3 8 18 Combat Hostiles 52 | . . . . . . . 1 . . 1 . . . . 1 1 . . . . 3 . . . . . 4 1 3 7 4 . 8 18 Parts Melted 360 | . 1 . 5 . . 1 27 . 1 13 5 5 . 4 21 4 2 8 10 1 18 6 3 1 . 3 19 15 19 27 31 26 34 50 Heat Transferred 150112 | 475 325 296 2376 740 . 555 6660 . 481 2516 1628 851 . 370 5147 731 411 2847 3480 740 6839 1628 1036 259 906 925 6937 4874 8810 21082 12671 11308 17805 24403 Parts Sabotaged . | . . . . . . . . . . . . . . . . . . . . . . . . . . . . . . . . . . . Parts Stolen . | . . . . . . . . . . . . . . . . . . . . . . . . . . . . . . . . . . . Parts Stripped . | . . . . . . . . . . . . . . . . . . . . . . . . . . . . . . . . . . . Power Chain Reactions . | . . . . . . . . . . . . . . . . . . . . . . . . . . . . . . . . . . . Missiles Intercepted . | . . . . . . . . . . . . . . . . . . . . . . . . . . . . . . . . . . . Alert | -11 -10 -10 -9 -9 -9 -8 -8 -7 -7 -6 -6 -6 -6 -5 -5 -5 -5 -5 -5 -5 -5 -4 -4 -4 -4 -3 -3 -3 -2 -2 -2 -1 -1 -1 ------- Run | Scr Mat Min Mat Min Exi Min Mat Fac DSF Fac Low Low Dat Pro Fac Was Fac Ext Cet Arc Hub Fac Upp Upp Zhi Pro Res Qua Res Tes Sec Acc Com Ac0 Peak Influence 898 | 35 71 102 280 130 . 70 293 3 104 357 . . . . 256 144 403 200 312 197 898 441 . . . . 296 165 397 363 539 609 822 . Initial 322 | . 17 . . 6 . . 19 1 . 40 . . . . . 48 . 7 . 63 46 322 . . . . . 37 49 81 29 123 151 . Average 171 | 17 25 13 73 45 . 6 87 . 49 117 . . . . 103 79 88 60 184 170 377 276 . . . . 82 72 154 161 192 317 526 . Maximum Alert Level 3 | . . . 1 . . . 1 . . 1 . . . . 1 . 2 1 1 . 3 2 . . . . 1 . 1 1 2 2 3 . Low Security (%) 68 | 100 100 100 90 100 . 100 85 100 100 84 . . . . 86 100 86 89 45 100 32 34 . . . . 95 100 79 62 51 38 1 . Level 1 18 | . . . 9 . . . 14 . . 16 . . . . 13 . 12 10 54 . 24 31 . . . . 4 . 20 37 40 25 21 . Level 2 11 | . . . . . . . . . . . . . . . . . 1 . . . 30 33 . . . . . . . . 8 36 63 . Level 3 1 | . . . . . . . . . . . . . . . . . . . . . 11 . . . . . . . . . . . 14 . Level 4 . | . . . . . . . . . . . . . . . . . . . . . . . . . . . . . . . . . . . Level 5 . | . . . . . . . . . . . . . . . . . . . . . . . . . . . . . . . . . . . High Security . | . . . . . . . . . . . . . . . . . . . . . . . . . . . . . . . . . . . Max Security . | . . . . . . . . . . . . . . . . . . . . . . . . . . . . . . . . . . . Squads Dispatched 62 | . . . 2 . . . 3 . 1 3 . . . . 3 . . . . . 4 2 . . . . 7 2 5 9 9 5 7 . Investigation 6 | . . . 1 . . . . . . . . . . . . . . . . . 1 . . . . . 2 . . 1 1 . . . Extermination 36 | . . . . . . . . . . 1 . . . . 2 . . . . . 1 2 . . . . 5 2 4 5 5 4 5 . Reinforcement 14 | . . . 1 . . . 2 . 1 . . . . . 1 . . . . . 2 . . . . . . . 1 3 3 . . . Assault 2 | . . . . . . . . . . . . . . . . . . . . . . . . . . . . . . . . . 2 . Garrison 4 | . . . . . . . 1 . . 2 . . . . . . . . . . . . . . . . . . . . . 1 . . Intercept . | . . . . . . . . . . . . . . . . . . . . . . . . . . . . . . . . . . . Searches Triggered . | . . . . . . . . . . . . . . . . . . . . . . . . . . . . . . . . . . . Data Miner Redirects 1 | . . . . . . . . . . . . . . . . . . . . . . . . . . . . . . . . . 1 . Construction Impeded 1 | . . . . . . . . . . . . . . . . . . . . . . . . . . . . . . . 1 . . . Haulers Reinforced 3 | . . . . . . . . . . . . . . . 1 . . . . . 1 . . . . . . . . 1 . . . . Active Scanning Responses . | . . . . . . . . . . . . . . . . . . . . . . . . . . . . . . . . . . . Cargo Convoy Interrupts 1 | . . . . . . . . . . . . . . . . . . . . . . . . . . . 1 . . . . . . . Stealth | -11 -10 -10 -9 -9 -9 -8 -8 -7 -7 -6 -6 -6 -6 -5 -5 -5 -5 -5 -5 -5 -5 -4 -4 -4 -4 -3 -3 -3 -2 -2 -2 -1 -1 -1 --------- Run | Scr Mat Min Mat Min Exi Min Mat Fac DSF Fac Low Low Dat Pro Fac Was Fac Ext Cet Arc Hub Fac Upp Upp Zhi Pro Res Qua Res Tes Sec Acc Com Ac0 Distress Signals 35 | . 1 . 1 . . . 1 . . 1 . . . . . . 2 . 2 . 3 1 . . . . 1 . 1 . 4 2 15 . Communications Jammed 132 | . . . . . . . . . . . . . . . 2 . 16 1 . . 85 . . . . . 8 7 6 7 . . . . Distress Signals 128 | . . . . . . . . . . . . . . . . . 16 1 . . 85 . . . . . 8 5 6 7 . . . . Times Spotted 706 | . 4 4 26 10 . 2 28 . 3 18 10 4 . 1 20 3 6 10 21 2 40 10 5 3 . 6 35 27 41 48 58 68 70 123 Peak Tracking Total 9 | . 3 2 3 8 . 2 6 . 1 4 9 3 . 1 5 1 3 2 5 2 6 5 3 3 . 4 4 3 5 5 7 7 8 5 Tactical Retreats 10 | . . . . . . . 2 . 1 . . . . . . . . . 1 . 1 . . . . . . . 1 1 . 1 2 . Traps | -11 -10 -10 -9 -9 -9 -8 -8 -7 -7 -6 -6 -6 -6 -5 -5 -5 -5 -5 -5 -5 -5 -4 -4 -4 -4 -3 -3 -3 -2 -2 -2 -1 -1 -1 ------- Run | Scr Mat Min Mat Min Exi Min Mat Fac DSF Fac Low Low Dat Pro Fac Was Fac Ext Cet Arc Hub Fac Upp Upp Zhi Pro Res Qua Res Tes Sec Acc Com Ac0 Traps Triggered 28 | . . . 1 . . . . . 1 1 . . . . 4 . 3 1 . . 2 1 . . . . 7 2 3 1 1 . . . Indirectly 1 | . . . . . . . . . . . . . . . . . . . . . 1 . . . . . . . . . . . . . Trap Hack Attempts . | . . . . . . . . . . . . . . . . . . . . . . . . . . . . . . . . . . . Triggered . | . . . . . . . . . . . . . . . . . . . . . . . . . . . . . . . . . . . Disarmed 10 | . . . . . . . . . . . . . . . . . . . . . . . . . . . 6 . . 4 . . . . Reprogrammed 25 | . . . . . . . 12 . . . . . . . . . . . . . . . . . . . 7 . . 6 . . . . Reused 3 | . . . . . . . 1 . . . . . . . . . . . . . . . . . . . 1 . . 1 . . . . Traps Extracted . | . . . . . . . . . . . . . . . . . . . . . . . . . . . . . . . . . . . Installed . | . . . . . . . . . . . . . . . . . . . . . . . . . . . . . . . . . . . Triggered 4 | . . . . . . . 1 . . . . . . . . . . . . . . . . . . . 2 . . 1 . . . . Machines | -11 -10 -10 -9 -9 -9 -8 -8 -7 -7 -6 -6 -6 -6 -5 -5 -5 -5 -5 -5 -5 -5 -4 -4 -4 -4 -3 -3 -3 -2 -2 -2 -1 -1 -1 ---------- Run | Scr Mat Min Mat Min Exi Min Mat Fac DSF Fac Low Low Dat Pro Fac Was Fac Ext Cet Arc Hub Fac Upp Upp Zhi Pro Res Qua Res Tes Sec Acc Com Ac0 Machines Disabled 111 | . . . . . . . 1 . 1 . . . . . 7 . 21 4 2 2 29 . . 1 1 . . 9 1 5 12 2 5 8 Max in Single Turn 12 | . . . . . . . 1 . 1 . . . . . 4 . 12 1 2 1 9 . . 1 1 . . 1 1 1 1 1 2 2 Garrison Access 9 | . . . . . . . . . . 1 . . . . 1 . 1 . . . 1 . . . . . . 1 1 1 1 1 . . Network Hub 4 | . . . . . . . . . . . . . . . . . . . . . 4 . . . . . . . . . . . . . Energy Cycler 1 | . . . . . . . . . . . . . . . . . . . . . . . . . . . . . . . . 1 . . Machines Sabotaged . | . . . . . . . . . . . . . . . . . . . . . . . . . . . . . . . . . . . Garrisons Compromised 1 | . . . . . . . . . . . . . . . . . . . . . . . . . . . 1 . . . . . . . Overloaded Fab Kills . | . . . . . . . . . . . . . . . . . . . . . . . . . . . . . . . . . . . Hacking | -11 -10 -10 -9 -9 -9 -8 -8 -7 -7 -6 -6 -6 -6 -5 -5 -5 -5 -5 -5 -5 -5 -4 -4 -4 -4 -3 -3 -3 -2 -2 -2 -1 -1 -1 --------- Run | Scr Mat Min Mat Min Exi Min Mat Fac DSF Fac Low Low Dat Pro Fac Was Fac Ext Cet Arc Hub Fac Upp Upp Zhi Pro Res Qua Res Tes Sec Acc Com Ac0 Machines Accessed 107 | . 2 . 7 1 . . 7 2 . 2 . . 4 . 4 . 6 6 1 1 8 2 . 1 4 . 7 10 8 6 5 4 8 1 Terminals 77 | . 2 . 7 . . . 6 2 . 1 . . . . 1 . 5 5 1 . 7 2 . . . . 4 9 5 5 4 3 8 . Fabricators 6 | . . . . . . . . . . . . . . . 2 . . . . . . . . . . . 2 . 2 . . . . . Repair Stations 1 | . . . . . . . . . . . . . . . . . . 1 . . . . . . . . . . . . . . . . Recycling Units . | . . . . . . . . . . . . . . . . . . . . . . . . . . . . . . . . . . . Scanalyzers 1 | . . . . . . . . . . . . . . . . . . . . . . . . . . . 1 . . . . . . . Garrison Access 10 | . . . . . . . 1 . . 1 . . . . 1 . 1 . . . 1 . . . . . . 1 1 1 1 1 . . Total Hacks 362 | . 4 . 15 1 . . 16 3 . 3 . . 29 . 5 . 10 11 1 2 26 5 . 1 17 . 42 57 32 19 25 7 25 6 Successful 191 | . 3 . 4 1 . . 7 3 . 1 . . 29 . 2 . 4 5 1 2 7 3 . 1 17 . 23 31 10 6 13 3 9 6 Failed 171 | . 1 . 11 . . . 9 . . 2 . . . . 3 . 6 6 . . 19 2 . . . . 19 26 22 13 12 4 16 . Catastrophic 37 | . . . 3 . . . 1 . . . . . . . 1 . . 3 . . 5 1 . . . . 1 3 5 4 5 2 3 . Database Lockouts . | . . . . . . . . . . . . . . . . . . . . . . . . . . . . . . . . . . . Manual 154 | . 2 . 12 . . . 10 1 . 2 . . . . 4 . 5 10 2 . 13 2 . . . . 16 34 10 8 9 4 10 . Terminals 258 | . 4 . 15 . . . 14 3 . 2 . . . . 1 . 8 9 1 . 25 5 . . . . 26 55 19 16 24 6 25 . Fabricators 23 | . . . . . . . . . . . . . . . 3 . . . . . . . . . . . 11 . 9 . . . . . Repair Stations 2 | . . . . . . . . . . . . . . . . . . 2 . . . . . . . . . . . . . . . . Recycling Units . | . . . . . . . . . . . . . . . . . . . . . . . . . . . . . . . . . . . Scanalyzers 5 | . . . . . . . . . . . . . . . . . . . . . . . . . . . 5 . . . . . . . Garrison Access 18 | . . . . . . . 2 . . 1 . . . . 1 . 2 . . . 1 . . . . . . 2 4 3 1 1 . . Terminal Hacks 151 | . 3 . 4 1 . . 7 3 . . . . 29 . . . 3 1 1 2 6 3 . 1 17 . 11 23 5 3 11 2 9 6 Record 20 | . . . . . . . . . . . . . 11 . . . . . . 2 . . . 1 5 . . 1 . . . . . . Part Schematic 14 | . . . . . . . . . . . . . 10 . . . . . . . . . . . 4 . . . . . . . . . Robot Schematic 5 | . . . . . . . . . . . . . 5 . . . . . . . . . . . . . . . . . . . . . Robot Analysis 4 | . . . . . . . . . . . . . . . . . . . . . . . . . 4 . . . . . . . . . Prototype ID Bank 19 | . . . . . . . 1 1 . . . . 3 . . . . . . . . . . . 4 . 2 8 . . . . . . Open Door 4 | . . . . 1 . . . . . . . . . . . . . . 1 . . . . . . . . . . . 1 . 1 . Open DSF 3 | . . . . . . . . 1 . . . . . . . . 1 . . . . 1 . . . . . . . . . . . . Level Access Points 4 | . . . . . . . . . . . . . . . . . . . . . . . . . . . 1 2 . . . 1 . . Branch Access Points 6 | . . . 1 . . . 1 . . . . . . . . . 1 . . . . 1 . . . . 1 . 1 . . . . . Emergency Access Points 6 | . 1 . . . . . . . . . . . . . . . . . . . . . . . . . . . . . 1 . 4 . Machine Index 1 | . . . . . . . . . . . . . . . . . . . . . . . . . . . . . . . 1 . . . Fabricator Index 3 | . . . . . . . . . . . . . . . . . . . . . . . . . . . . 1 1 . . . 1 . Garrison Index 1 | . . . . . . . . . . . . . . . . . . . . . . . . . . . . . . . . . 1 . Unreport Threat 30 | . 1 . 3 . . . 2 1 . . . . . . . . 1 1 . . 4 1 . . . . 3 6 3 . 4 . . . Locate Traps 5 | . 1 . . . . . . . . . . . . . . . . . . . . . . . . . . 1 . . 2 . 1 . Disarm Traps 3 | . . . . . . . . . . . . . . . . . . . . . . . . . . . 2 . . 1 . . . . Reprogram Traps 5 | . . . . . . . 2 . . . . . . . . . . . . . . . . . . . 2 . . 1 . . . . Surveillance Status 1 | . . . . . . . . . . . . . . . . . . . . . . . . . . . . 1 . . . . . . Patrol Status 1 | . . . . . . . . . . . . . . . . . . . . . . . . . . . . 1 . . . . . . Transport Status 1 | . . . . . . . . . . . . . . . . . . . . . . . . . . . . 1 . . . . . . Recall Extermination 1 | . . . . . . . . . . . . . . . . . . . . . . . . . . . . . . . 1 . . . Recall Reinforcements 2 | . . . . . . . 1 . . . . . . . . . . . . . 1 . . . . . . . . . . . . . Registered Prototypes 2 | . . . . . . . . . . . . . . . . . . . . . . . . . . . . 1 . . 1 . . . Zone Layout 2 | . . . . . . . . . . . . . . . . . . . . . 1 . . . . . . . . . . 1 . . Protovariant Controls 1 | . . . . . . . . . . . . . . . . . . . . . . . . . . . . . . 1 . . . . Disengage Seal 1 | . . . . . . . . . . . . . . . . . . . . . . . . . . . . . . . . . 1 . Gate Test 138-B 1 | . . . . . . . . . . . . . . . . . . . . . . . . . . . . . . . . . . 1 Gate Test 138-C 1 | . . . . . . . . . . . . . . . . . . . . . . . . . . . . . . . . . . 1 Gate Test 138-END 3 | . . . . . . . . . . . . . . . . . . . . . . . . . . . . . . . . . . 3 Fabricator Hacks 9 | . . . . . . . . . . . . . . . . . . . . . . . . . . . 5 . 3 . . . . 1 Load Schematic 5 | . . . . . . . . . . . . . . . . . . . . . . . . . . . 3 . 2 . . . . . Build 3 | . . . . . . . . . . . . . . . . . . . . . . . . . . . 2 . 1 . . . . . Repair Station Hacks 2 | . . . . . . . . . . . . . . . . . . 2 . . . . . . . . . . . . . . . . Scan Component 1 | . . . . . . . . . . . . . . . . . . 1 . . . . . . . . . . . . . . . . Repair 1 | . . . . . . . . . . . . . . . . . . 1 . . . . . . . . . . . . . . . . Recycling Unit Hacks . | . . . . . . . . . . . . . . . . . . . . . . . . . . . . . . . . . . . Scanalyzer 4 | . . . . . . . . . . . . . . . . . . . . . . . . . . . 4 . . . . . . . Insert Component 2 | . . . . . . . . . . . . . . . . . . . . . . . . . . . 2 . . . . . . . Analyze 2 | . . . . . . . . . . . . . . . . . . . . . . . . . . . 2 . . . . . . . Garrison Access Hacks 9 | . . . . . . . . . . 1 . . . . 1 . 1 . . . 1 . . . . . . 1 1 1 1 1 . . Seal Access 9 | . . . . . . . . . . 1 . . . . 1 . 1 . . . 1 . . . . . . 1 1 1 1 1 . . Unauthorized Hacks 17 | . . . . . . . . . . . . . . . 1 . . 2 . . . . . . . . 3 7 1 2 1 . . . Terminals 13 | . . . . . . . . . . . . . . . . . . 2 . . . . . . . . 1 7 . 2 1 . . . Assimilate 3 | . . . . . . . . . . . . . . . . . . 2 . . . . . . . . . . . 1 . . . . Botnet 10 | . . . . . . . . . . . . . . . . . . . . . . . . . . . 1 7 . 1 1 . . . Fabricators 4 | . . . . . . . . . . . . . . . 1 . . . . . . . . . . . 2 . 1 . . . . . Liberate 4 | . . . . . . . . . . . . . . . 1 . . . . . . . . . . . 2 . 1 . . . . . Repair Stations . | . . . . . . . . . . . . . . . . . . . . . . . . . . . . . . . . . . . Recycling Units . | . . . . . . . . . . . . . . . . . . . . . . . . . . . . . . . . . . . Scanalyzers . | . . . . . . . . . . . . . . . . . . . . . . . . . . . . . . . . . . . Garrison Access . | . . . . . . . . . . . . . . . . . . . . . . . . . . . . . . . . . . . Data Cores Recovered 9 | . . . 1 . . . . . . 1 . . . . . . 1 . . . 2 . . . . . 1 2 . . 1 . . . Used 4 | . . . 1 . . . . . . . . . . . . . 1 . . . . . . . . . 1 . . . 1 . . . Hacking Detections 77 | . 1 . 7 . . . 7 1 . 1 . . . . 2 . 5 6 . . 7 2 . . . . 5 8 7 6 3 2 7 . Full Trace Events 4 | . . . 1 . . . 1 . . . . . . . . . . . . . . . . . . . 1 . . 1 . . . . Feedback Events . | . . . . . . . . . . . . . . . . . . . . . . . . . . . . . . . . . . . Feedback Blocked . | . . . . . . . . . . . . . . . . . . . . . . . . . . . . . . . . . . . Robot Schematics Acquired 11 | . . . . . . . . . . . . . 5 . . . . . . . . . . . . . . . . 1 5 . . . Robots Built . | . . . . . . . . . . . . . . . . . . . . . . . . . . . . . . . . . . . Authchips . | . . . . . . . . . . . . . . . . . . . . . . . . . . . . . . . . . . . Time . | . . . . . . . . . . . . . . . . . . . . . . . . . . . . . . . . . . . Total Robot Build Rating . | . . . . . . . . . . . . . . . . . . . . . . . . . . . . . . . . . . . Part Schematics Acquired 26 | . . . . . . . . . . . . . 10 . . . . . . . . . . . 4 . 1 . . 6 5 . . . Parts Built 3 | . . . . . . . . . . . . . . . . . . . . . . . . . . . 2 . 1 . . . . . Authchips . | . . . . . . . . . . . . . . . . . . . . . . . . . . . . . . . . . . . Time 309 | . . . . . . . . . . . . . . . . . . . . . . . . . . . 225 . 84 . . . . . Total Part Build Rating 18 | . . . . . . . . . . . . . . . . . . . . . . . . . . . 12 . 6 . . . . . Parts Repaired 1 | . . . . . . . . . . . . . . . . . . 1 . . . . . . . . . . . . . . . . Time 95 | . . . . . . . . . . . . . . . . . . 95 . . . . . . . . . . . . . . . . Parts Recycled . | . . . . . . . . . . . . . . . . . . . . . . . . . . . . . . . . . . . Recycled Matter . | . . . . . . . . . . . . . . . . . . . . . . . . . . . . . . . . . . . Retrieved Matter . | . . . . . . . . . . . . . . . . . . . . . . . . . . . . . . . . . . . Retrieved Components . | . . . . . . . . . . . . . . . . . . . . . . . . . . . . . . . . . . . Parts Scanalyzed 1 | . . . . . . . . . . . . . . . . . . . . . . . . . . . 1 . . . . . . . Part Schematics Acquired 1 | . . . . . . . . . . . . . . . . . . . . . . . . . . . 1 . . . . . . . Parts Damaged . | . . . . . . . . . . . . . . . . . . . . . . . . . . . . . . . . . . . Bothacking | -11 -10 -10 -9 -9 -9 -8 -8 -7 -7 -6 -6 -6 -6 -5 -5 -5 -5 -5 -5 -5 -5 -4 -4 -4 -4 -3 -3 -3 -2 -2 -2 -1 -1 -1 ------------ Run | Scr Mat Min Mat Min Exi Min Mat Fac DSF Fac Low Low Dat Pro Fac Was Fac Ext Cet Arc Hub Fac Upp Upp Zhi Pro Res Qua Res Tes Sec Acc Com Ac0 Used RIF Installer . | . . . . . . . . . . . . . . . . . . . . . . . . . . . . . . . . . . . Robots Hacked . | . . . . . . . . . . . . . . . . . . . . . . . . . . . . . . . . . . . Non-combat . | . . . . . . . . . . . . . . . . . . . . . . . . . . . . . . . . . . . Combat . | . . . . . . . . . . . . . . . . . . . . . . . . . . . . . . . . . . . Robot Hacks Applied . | . . . . . . . . . . . . . . . . . . . . . . . . . . . . . . . . . . . Relay Couplers Released 1 | . . . . . . . . . . . . . . . . . . . . . . . . . . . . 1 . . . . . . Programmers 1 | . . . . . . . . . . . . . . . . . . . . . . . . . . . . 1 . . . . . . Fabnet Peak Effective % . | . . . . . . . . . . . . . . . . . . . . . . . . . . . . . . . . . . . Robots Rewired 2 | . . . . . . . . . . . 2 . . . . . . . . . . . . . . . . . . . . . . . Allies Hacked . | . . . . . . . . . . . . . . . . . . . . . . . . . . . . . . . . . . . Hacks Repelled . | . . . . . . . . . . . . . . . . . . . . . . . . . . . . . . . . . . . Allies | -11 -10 -10 -9 -9 -9 -8 -8 -7 -7 -6 -6 -6 -6 -5 -5 -5 -5 -5 -5 -5 -5 -4 -4 -4 -4 -3 -3 -3 -2 -2 -2 -1 -1 -1 -------- Run | Scr Mat Min Mat Min Exi Min Mat Fac DSF Fac Low Low Dat Pro Fac Was Fac Ext Cet Arc Hub Fac Upp Upp Zhi Pro Res Qua Res Tes Sec Acc Com Ac0 Total Allies 69 | . . 2 . . . . . . . . 2 . . 1 . 19 . 6 5 . . . . . . . . . . 1 . 3 30 . Largest Group 19 | . . 2 2 . . . . . . . 2 2 1 2 2 19 13 13 6 5 4 . . . . . . . . 1 . 3 19 . Highest-Rated Group 684 | . . 38 38 . . . . . . . 59 59 30 126 126 684 520 476 480 480 384 . . . . . . . . 45 . 372 488 . Highest-Rated Ally 234 | . . 31 31 . . . . . . . 30 30 30 96 96 50 50 159 159 96 96 . . . . . . . . 45 . 131 234 . Total Orders 7 | . . . . 2 2 3 . . . . . . . . . . . . . . . . . . . . . . . . . . . . EXPLORE 3 | . . . . 1 1 1 . . . . . . . . . . . . . . . . . . . . . . . . . . . . RETURN 4 | . . . . 1 1 2 . . . . . . . . . . . . . . . . . . . . . . . . . . . . Ally Attacks 419 | . . 6 6 . . . . . . . 3 5 . . 14 53 24 46 42 9 44 . . . . . . . . . . . 167 . Total Damage 15030 | . . 41 128 . . . . . . . 79 52 . . 636 3037 1616 1160 1285 326 1543 . . . . . . . . . . . 5127 . Kills 76 | . . 2 2 . . . . . . . . . . . 5 10 7 6 7 1 13 . . . . . . . . . . . 23 . Allies Corrupted 4 | . . . . . . . . . . . . . . . . . . . . . 1 . . . . . . . . . . . 3 . Allies Melted 1 | . . . . . . . . . . . . . . . . . . . . . 1 . . . . . . . . . . . . . Intel | -11 -10 -10 -9 -9 -9 -8 -8 -7 -7 -6 -6 -6 -6 -5 -5 -5 -5 -5 -5 -5 -5 -4 -4 -4 -4 -3 -3 -3 -2 -2 -2 -1 -1 -1 ------- Run | Scr Mat Min Mat Min Exi Min Mat Fac DSF Fac Low Low Dat Pro Fac Was Fac Ext Cet Arc Hub Fac Upp Upp Zhi Pro Res Qua Res Tes Sec Acc Com Ac0 Robot Analysis Total 4 | . . . . . . . . . . . . . . . . . . . . . . . . . 4 . . . . . . . . . Derelict Logs Recovered 4 | . . 1 . . . . . . . . 1 1 . 1 . . . . . . . . . . . . . . . . . . . . Drone Launches 86 | . . . . 38 16 32 . . . . . . . . . . . . . . . . . . . . . . . . . . . . Drone Recoveries 82 | . . . . 34 16 32 . . . . . . . . . . . . . . . . . . . . . . . . . . . . Exploration | -11 -10 -10 -9 -9 -9 -8 -8 -7 -7 -6 -6 -6 -6 -5 -5 -5 -5 -5 -5 -5 -5 -4 -4 -4 -4 -3 -3 -3 -2 -2 -2 -1 -1 -1 ------------- Run | Scr Mat Min Mat Min Exi Min Mat Fac DSF Fac Low Low Dat Pro Fac Was Fac Ext Cet Arc Hub Fac Upp Upp Zhi Pro Res Qua Res Tes Sec Acc Com Ac0 Turns Passed 33461 | 315 284 712 1269 432 340 489 1494 132 155 975 624 360 128 460 1392 455 561 1855 616 140 1462 615 462 408 351 471 1774 1550 1970 2076 2126 2108 2455 2445 Spaces Moved 16906 | 169 149 426 681 247 108 131 771 81 74 547 350 211 81 275 737 271 331 1025 295 73 747 336 267 242 182 276 790 808 991 962 1028 1119 1146 979 Core 2 | 2 . . . . . . . . . . . . . . . . . . . . . . . . . . . . . . . . . . Treads 16904 | 167 149 426 681 247 108 131 771 81 74 547 350 211 81 275 737 271 331 1025 295 73 747 336 267 242 182 276 790 808 991 962 1028 1119 1146 979 Legs . | . . . . . . . . . . . . . . . . . . . . . . . . . . . . . . . . . . . Wheels . | . . . . . . . . . . . . . . . . . . . . . . . . . . . . . . . . . . . Hover . | . . . . . . . . . . . . . . . . . . . . . . . . . . . . . . . . . . . Flight . | . . . . . . . . . . . . . . . . . . . . . . . . . . . . . . . . . . . Fastest Speed 50 | 50 160 160 160 160 160 160 160 162 157 160 160 160 160 160 160 160 160 160 160 160 160 160 160 160 160 160 160 160 160 160 160 160 160 160 Average Speed 160 | 158 160 160 160 160 160 160 161 162 161 160 160 160 160 160 160 160 160 160 160 160 160 160 160 160 160 160 160 160 160 160 160 160 160 160 Slowest Speed 240 | 160 160 160 160 160 160 160 162 162 165 160 160 160 160 160 160 160 160 160 160 160 160 160 160 160 160 160 160 160 160 160 160 160 240 160 Overloaded Moves . | . . . . . . . . . . . . . . . . . . . . . . . . . . . . . . . . . . . Propulsion Burnouts . | . . . . . . . . . . . . . . . . . . . . . . . . . . . . . . . . . . . Robots Hopped . | . . . . . . . . . . . . . . . . . . . . . . . . . . . . . . . . . . . Cave-ins Triggered . | . . . . . . . . . . . . . . . . . . . . . . . . . . . . . . . . . . . Teleports 1 | . . . . . . . . . . . . . . . . . . . . . . . . . . . . . . . . . 1 . Exploration Rate (%) 55 | 9 33 91 63 93 86 96 73 2 57 12 63 42 73 49 23 92 16 97 69 82 79 15 51 40 60 45 22 93 38 78 57 35 51 65 Regions Visited 34 Branch Regions 21 Pre-discovered Areas 6 | . . . . . . . . . . . 1 1 1 . . . . . . . . . . . 3 . . . . . . . . . Known Exits Taken 31 | 1 1 1 1 1 1 1 1 1 . 1 1 1 1 1 . . 1 1 1 1 1 1 1 1 1 1 1 1 1 1 1 1 1 . Unknown Exits Taken . | . . . . . . . . . . . . . . . . . . . . . . . . . . . . . . . . . . . Scrap Searched 11 | . . 1 . . . . . . . . 2 . . 1 . . . . . . . . . 4 . 3 . . . . . . . . Spaces Dug 203 | . . . . . . . . . . . . . . . 1 . 4 . . . 190 . . . . . . 4 . 3 . . . 1 Terrain Destroyed 994 | . . . . . . . . . . . . . . . 47 . 38 24 30 3 693 8 3 3 . 1 9 15 17 9 11 4 38 41 Melee . | . . . . . . . . . . . . . . . . . . . . . . . . . . . . . . . . . . . Projectile 194 | . . . . . . . . . . . . . . . 10 . 17 24 5 3 35 8 3 3 . 1 9 15 17 9 11 . 14 10 AOE 800 | . . . . . . . . . . . . . . . 37 . 21 . 25 . 658 . . . . . . . . . . 4 24 31 Terrain Rammed . | . . . . . . . . . . . . . . . . . . . . . . . . . . . . . . . . . . . Walls Destroyed . | . . . . . . . . . . . . . . . . . . . . . . . . . . . . . . . . . . . Machines Disabled . | . . . . . . . . . . . . . . . . . . . . . . . . . . . . . . . . . . . Actions | -11 -10 -10 -9 -9 -9 -8 -8 -7 -7 -6 -6 -6 -6 -5 -5 -5 -5 -5 -5 -5 -5 -4 -4 -4 -4 -3 -3 -3 -2 -2 -2 -1 -1 -1 --------- Run | Scr Mat Min Mat Min Exi Min Mat Fac DSF Fac Low Low Dat Pro Fac Was Fac Ext Cet Arc Hub Fac Upp Upp Zhi Pro Res Qua Res Tes Sec Acc Com Ac0 Total 20569 | 188 179 444 789 268 275 402 885 81 104 592 386 220 80 291 862 287 347 1188 380 83 866 380 282 254 216 289 1178 923 1207 1190 1329 1265 1493 1366 Wait 1306 | . . 1 20 5 168 256 6 . . 4 . . . 7 35 . . 99 3 . . 14 . . . . 287 13 113 37 89 22 122 5 Move 16873 | 168 148 425 680 246 107 130 770 80 73 546 349 210 80 274 737 270 330 1024 294 72 746 335 266 241 181 275 789 807 990 961 1027 1118 1145 979 Hop . | . . . . . . . . . . . . . . . . . . . . . . . . . . . . . . . . . . . Pick Up 97 | . 2 2 2 . . 2 2 . 1 1 2 . . 2 7 2 2 5 2 . 6 . 1 1 1 1 3 8 4 3 5 8 12 10 Fast Attach 213 | 8 5 . 11 1 . 1 9 1 5 4 2 . . . 8 3 1 6 11 1 7 5 . 3 5 . 19 15 11 17 39 2 7 6 Attach 43 | . 1 . 2 . . 5 5 . 1 . . . . 1 . . . . . . 1 1 . . . 1 4 1 2 3 1 1 7 6 Detach 66 | . 5 . 4 1 . 3 6 . 2 . . . . . 5 . . 2 1 . 3 3 . . 1 . 7 1 5 1 8 . . 8 Swap 62 | . 2 2 3 . . . 1 . 6 . . . . . . 2 . 1 2 . 2 . . . . . 1 3 1 8 8 2 9 9 Drop 258 | . 7 . 14 . . 1 11 . 12 3 3 . . 2 12 7 2 9 13 1 11 4 1 2 4 1 16 19 14 21 25 8 20 15 Fire 1018 | 12 9 5 34 5 . 4 53 . 4 20 11 5 . 2 36 3 6 20 23 5 64 14 8 3 24 7 36 40 43 107 64 60 105 186 Melee . | . . . . . . . . . . . . . . . . . . . . . . . . . . . . . . . . . . . Ram . | . . . . . . . . . . . . . . . . . . . . . . . . . . . . . . . . . . . Kick . | . . . . . . . . . . . . . . . . . . . . . . . . . . . . . . . . . . . Crush 34 | . . 2 3 6 . . 11 . . . . . . . 2 . . 3 . . 2 . . 1 . . . . 1 . . 3 . . Escape Stasis . | . . . . . . . . . . . . . . . . . . . . . . . . . . . . . . . . . . . Rewire 7 | . . . . . . . . . . . 6 1 . . . . . . . . . . . . . . . . . . . . . . Trap . | . . . . . . . . . . . . . . . . . . . . . . . . . . . . . . . . . . . Miscellaneous 592 | . . 7 16 4 . . 11 . . 14 13 4 . 3 20 . 6 19 31 4 24 4 6 3 . 4 16 16 23 32 63 41 66 142 Route ------- -11/Scrapyard -10/Materials -10/Mines (discovered 2 exits: *Mat x2) -9/Materials (discovered 4 exits: *Mat x3 / *Min) -9/Mines (discovered 3 exits: *Mat x2 / *Exi) -9/Exiles (discovered 2 exits: *Min x2) -8/Mines (discovered 2 exits: *Mat x2) -8/Materials (discovered 2 exits: *Fac x2) -7/Factory -7/DSF -6/Factory -6/Lower Caves -6/Lower Caves (discovered 2 exits: Fac / *Dat) -6/Data Miner -5/Proximity Caves -5/Factory -5/Waste -5/Factory (discovered 4 exits: Upp x2 / *Ext x2) -5/Extension (discovered 3 exits: *Fac x2 / *Cet) -5/Cetus (discovered 2 exits: *Fac / *Arc) -5/Archives (discovered 2 exits: *Hub x2) -5/Hub_04(d) (discovered 4 exits: *Fac x4) -4/Factory (discovered 3 exits: *Upp x2 / Arm) -4/Upper Caves -4/Upper Caves -4/Zhirov -3/Proximity Caves -3/Research (discovered 5 exits: *Res x3 / *Qua x2) -3/Quarantine -2/Research (discovered 2 exits: *Tes x2) -2/Testing (discovered 2 exits: *Acc / *Sec) -2/Section 7 -1/Access (discovered 2 exits: Sur / *Com) -1/Command (discovered 3 exits: Sur x2 / *Ac0) -1/Access_0 History --------- Turn | Location | Event 1 | -11/Scrapyard | Upgraded with Propulsion slot (x1) 1 | -11/Scrapyard | Upgraded with Utility slot (x2) 1 | -11/Scrapyard | Upgraded with Weapon slot (x1) 12 | -11/Scrapyard | Identified exit to Materials 12 | -11/Scrapyard | Discovered exit to Materials (range 16) 316 | -11/Scrapyard | Entered Materials 317 | -10/Materials | Build established: Hacker-Skirmisher 517 | -10/Materials | Identified exit to Mines 517 | -10/Materials | Discovered exit to Mines (range 12) 600 | -10/Materials | Entered Mines 604 | -10/Mines | Identified exit to Materials 604 | -10/Mines | Discovered exit to Materials (range 13) 795 | -10/Mines | Learned location of 1 exit from Materials 1179 | -10/Mines | Discovered exit to Materials (range 16) 1312 | -10/Mines | Entered Materials 1312 | -9/Materials | Accompanied by 2 allies 1313 | -9/Materials | Identified exit to Materials 1314 | -9/Materials | Reached level 2 1314 | -9/Materials | Reached level 3 1314 | -9/Materials | Reached level 4 1317 | -9/Materials | Led the pair of lost Derelicts to an unsafe place 1317 | -9/Materials | Upgraded with Power slot (x1) 1317 | -9/Materials | Upgraded with Weapon slot (x1) 1581 | -9/Materials | Discovered exit to Materials (range 11) 1652 | -9/Materials | Reached level 5 1863 | -9/Materials | Discovered exit to Materials (range 14) 2133 | -9/Materials | Identified exit to Mines 2158 | -9/Materials | Build established: Scavenger-Skirmisher 2309 | -9/Materials | Upgraded with Weapon slot (x1) 2543 | -9/Materials | Reached level 6 2558 | -9/Materials | Build established: Hacker-Skirmisher 2581 | -9/Materials | Entered Mines 2667 | -9/Mines | Found the Drone Emporium 2678 | -9/Mines | Found Prototype Device 2678 | -9/Mines | Identified Sensor Drone Bay 2686 | -9/Mines | Upgraded with Utility slot (x1) 2715 | -9/Mines | Identified exit to Exiles 2715 | -9/Mines | Discovered exit to Exiles (range 8) 2764 | -9/Mines | Discovered exit to Materials (range 40) 2782 | -9/Mines | Discovered exit to Materials (range 59) 2864 | -9/Mines | Assembled infested the area 2881 | -9/Mines | Met 8R-AWN 3013 | -9/Mines | Entered Exiles 3041 | -9/Exiles | Identified exit to Mines 3041 | -9/Exiles | Discovered exit to Mines (range 25) 3087 | -9/Exiles | Discovered exit to Mines (range 127) 3221 | -9/Exiles | Welcomed by 8R-AWN 3249 | -9/Exiles | Met EX-HEX 3290 | -9/Exiles | Learned about 8R-AWN's background 3353 | -9/Exiles | Entered Mines 3355 | -8/Mines | Reached level 7 3357 | -8/Mines | Upgraded with Propulsion slot (x2) 3450 | -8/Mines | Discovered exit to Materials (range 14) 3595 | -8/Mines | Discovered exit to Materials (range 68) 3842 | -8/Mines | Entered Materials 3844 | -8/Materials | Reached level 8 4122 | -8/Materials | Identified exit to Factory 4122 | -8/Materials | Discovered exit to Factory (range 10) 4162 | -8/Materials | Reached level 9 4187 | -8/Materials | Garrison activated, responded to threat 4472 | -8/Materials | Reached level 10 4493 | -8/Materials | Destroyed 7 combat bots 4645 | -8/Materials | Discovered exit to Factory (range 14) 4763 | -8/Materials | Upgraded with Weapon slot (x1) 5336 | -8/Materials | Entered Factory 5338 | -7/Factory | Reached level 11 5341 | -7/Factory | Upgraded with Utility slot (x1) 5466 | -7/Factory | Identified exit to DSF 5468 | -7/Factory | Entered DSF 5470 | -7/DSF | Reached level 12 5510 | -7/DSF | Identified exit to Factory 5510 | -7/DSF | Discovered exit to Factory (range 19) 5526 | -7/DSF | Additional patrols routed to DSF 5623 | -7/DSF | Entered Factory 5625 | -6/Factory | Reached level 13 5625 | -6/Factory | Reached level 14 5625 | -6/Factory | Upgraded with Utility slot (x1) 5750 | -6/Factory | Garrison activated, responded to threat 5913 | -6/Factory | Destroyed 8 combat bots 6121 | -6/Factory | Reached level 15 6532 | -6/Factory | Identified exit to Lower Caves 6532 | -6/Factory | Discovered exit to Lower Caves (range 7) 6598 | -6/Factory | Entered Lower Caves 6954 | -6/Lower Caves | Attracted the attention of an 0b10 outpost 6972 | -6/Lower Caves | Reached level 16 7004 | -6/Lower Caves | Destroyed 8 combat bots 7150 | -6/Lower Caves | Attracted the attention of an 0b10 checkpoint 7207 | -6/Lower Caves | Identified exit to Lower Caves 7207 | -6/Lower Caves | Discovered exit to Lower Caves (range 10) 7222 | -6/Lower Caves | Entered another Lower Caves area 7222 | -6/Lower Caves | Accompanied by 2 allies 7256 | -6/Lower Caves | Identified exit to Factory 7256 | -6/Lower Caves | Discovered exit to Factory (range 14) 7373 | -6/Lower Caves | Attracted the attention of an 0b10 checkpoint 7381 | -6/Lower Caves | Encountered a Warlord checkpoint 7547 | -6/Lower Caves | Identified exit to Data Miner 7547 | -6/Lower Caves | Discovered exit to Data Miner (range 18) 7582 | -6/Lower Caves | Entered Data Miner 7582 | -6/Data Miner | Accompanied by 1 ally 7582 | -6/Data Miner | Identified exit to Proximity Caves 7582 | -6/Data Miner | Discovered exit to Proximity Caves (range 6) 7584 | -6/Data Miner | Reached level 17 7606 | -6/Data Miner | Met Data Miner 7642 | -6/Data Miner | Learned location of Section 7 (-2) 7642 | -6/Data Miner | Acquired the access code to Warlord's prototype stash 7670 | -6/Data Miner | Received God Mode back door access code from Data Miner 7710 | -6/Data Miner | Entered Proximity Caves 7710 | -5/Proximity Caves | Accompanied by 1 ally 7723 | -5/Proximity Caves | Upgraded with Utility slot (x1) 7937 | -5/Proximity Caves | Escorted by Enhanced Grunt 7944 | -5/Proximity Caves | Reached level 18 8035 | -5/Proximity Caves | Build established: Hacker-Tank 8122 | -5/Proximity Caves | Discovered exit to Factory (range 6) 8170 | -5/Proximity Caves | Entered Factory 8170 | -5/Factory | Accompanied by 2 allies 8172 | -5/Factory | Reached level 19 8175 | -5/Factory | Upgraded with Utility slot (x1) 8266 | -5/Factory | Spotted B-75 Beast 8273 | -5/Factory | Destroyed B-75 Beast 8600 | -5/Factory | Reached level 20 8807 | -5/Factory | Build established: Scavenger-Skirmisher 9437 | -5/Factory | Identified exit to Factory 9437 | -5/Factory | Discovered exit to Factory (range 18) 9562 | -5/Factory | Sucked down chute 9562 | -5/Factory | Entered Waste 9574 | -5/Waste | Spotted C-40 Crusher 9578 | -5/Waste | Destroyed C-40 Crusher 9606 | -5/Waste | Warlord forces began an assault 9763 | -5/Waste | Allies destroyed C-40 Crusher 9774 | -5/Waste | Spotted C-40 Crusher 9778 | -5/Waste | Spotted C-40 Crusher 9778 | -5/Waste | Allies destroyed C-40 Crusher 9778 | -5/Waste | Allies destroyed C-40 Crusher 9785 | -5/Waste | Spotted C-40 Crusher 9793 | -5/Waste | Destroyed C-40 Crusher 9797 | -5/Waste | Spotted C-40 Crusher 9808 | -5/Waste | Allies destroyed C-40 Crusher 9823 | -5/Waste | Identified exit to Factory 9823 | -5/Waste | Discovered exit to Factory (range 20) 9938 | -5/Waste | Build established: Hacker-Skirmisher 10017 | -5/Waste | Entered Factory 10017 | -5/Factory | Accompanied by 13 allies 10168 | -5/Factory | Identified exit to DSF 10200 | -5/Factory | Identified exit to Upper Caves 10200 | -5/Factory | Identified exit to Extension 10340 | -5/Factory | Reached level 21 10578 | -5/Factory | Entered Extension 10578 | -5/Extension | Accompanied by 11 allies 10588 | -5/Extension | Disrupted transfer network 10757 | -5/Extension | Rescued a captive Derelict 10832 | -5/Extension | Rescued a captive Derelict 10927 | -5/Extension | Spotted B-75 Beast 10939 | -5/Extension | Rescued A7 10948 | -5/Extension | Upgraded with Power slot (x1) 10963 | -5/Extension | Spotted B-75 Beast 10964 | -5/Extension | Destroyed B-75 Beast 10976 | -5/Extension | Destroyed B-75 Beast 11010 | -5/Extension | Discovered exit to Factory (range 8) 11048 | -5/Extension | Reached level 22 11155 | -5/Extension | Rescued a captive Derelict 11178 | -5/Extension | Rescued a captive Derelict 11347 | -5/Extension | Rescued a captive Derelict 11374 | -5/Extension | Build established: Scavenger-Skirmisher 11506 | -5/Extension | Repaired Broken Adv. Force Field 11586 | -5/Extension | Discovered exit to Factory (range 10) 11588 | -5/Extension | Identified exit to Cetus 11588 | -5/Extension | Discovered exit to Cetus (range 6) 11705 | -5/Extension | Build established: Scavenger-Gunner 12095 | -5/Extension | Build established: Scavenger-Skirmisher 12433 | -5/Extension | Entered Cetus 12433 | -5/Cetus | Accompanied by 6 allies (A7) 12438 | -5/Cetus | Acquired a Cetus Manufacturing Module code from A7 12455 | -5/Cetus | Spotted Cetus Guard 12455 | -5/Cetus | Spotted Cetus Guard 12456 | -5/Cetus | Spotted Cetus Guard 12456 | -5/Cetus | Spotted Cetus Guard 12466 | -5/Cetus | Destroyed Cetus Guard 12475 | -5/Cetus | Destroyed Cetus Guard 12480 | -5/Cetus | Destroyed Cetus Guard 12480 | -5/Cetus | Destroyed Cetus Guard 12625 | -5/Cetus | Started Cetus Manufacturing Module 12638 | -5/Cetus | Identified exit to Archives 12638 | -5/Cetus | Discovered exit to Archives (range 19) 12650 | -5/Cetus | Manufactured an Enhanced Grunt 12675 | -5/Cetus | Manufactured an Enhanced Grunt 12676 | -5/Cetus | Spotted Cetus Guard 12676 | -5/Cetus | Spotted Cetus Guard 12684 | -5/Cetus | Destroyed Cetus Guard 12685 | -5/Cetus | Allies destroyed Cetus Guard 12685 | -5/Cetus | Spotted Cetus Guard 12685 | -5/Cetus | Spotted Cetus Guard 12694 | -5/Cetus | Destroyed Cetus Guard 12700 | -5/Cetus | Manufactured an Enhanced Grunt 12704 | -5/Cetus | Allies destroyed Cetus Guard 12708 | -5/Cetus | Destroyed A7 12714 | -5/Cetus | Extracted ID and sensor layout for unrecognized location from A7's data core 12725 | -5/Cetus | Manufactured an Enhanced Grunt 12745 | -5/Cetus | Discovered exit to Factory (range 19) 12750 | -5/Cetus | Manufactured an Enhanced Grunt 12760 | -5/Cetus | Met Revision 17 12761 | -5/Cetus | Destroyed Revision 17 13049 | -5/Cetus | Entered Archives 13049 | -5/Archives | Accompanied by 5 allies 13051 | -5/Archives | Reached level 23 13080 | -5/Archives | Identified exit to Hub_04(d) 13080 | -5/Archives | Discovered exit to Hub_04(d) (range 19) 13117 | -5/Archives | Discovered exit to Hub_04(d) (range 20) 13124 | -5/Archives | Unable to access archive contents 13189 | -5/Archives | Entered Hub_04(d) 13189 | -5/Hub_04(d) | Accompanied by 4 allies 13347 | -5/Hub_04(d) | Discovered exit to Factory (range 19) 13380 | -5/Hub_04(d) | Discovered exit to Factory (range 16) 13637 | -5/Hub_04(d) | Discovered exit to Factory (range 19) 13727 | -5/Hub_04(d) | Discovered exit to Factory (range 8) 13922 | -5/Hub_04(d) | Disrupted transfer network 13992 | -5/Hub_04(d) | Network Hub disabled 14058 | -5/Hub_04(d) | Network Hub disabled 14059 | -5/Hub_04(d) | Spotted Lightning 14061 | -5/Hub_04(d) | Spotted Lightning 14062 | -5/Hub_04(d) | Spotted Lightning 14097 | -5/Hub_04(d) | Destroyed Lightning 14098 | -5/Hub_04(d) | System corruption reached 10% 14103 | -5/Hub_04(d) | Destroyed Lightning 14116 | -5/Hub_04(d) | Destroyed Lightning 14133 | -5/Hub_04(d) | Found Prototype Device 14134 | -5/Hub_04(d) | Identified Exp. EM Disruption Field 14321 | -5/Hub_04(d) | Destroyed 8 combat bots 14328 | -5/Hub_04(d) | Network Hub disabled 14342 | -5/Hub_04(d) | Spotted Lightning 14342 | -5/Hub_04(d) | Spotted Lightning 14347 | -5/Hub_04(d) | Spotted Lightning 14356 | -5/Hub_04(d) | Destroyed Lightning 14365 | -5/Hub_04(d) | Destroyed Lightning 14373 | -5/Hub_04(d) | Destroyed Lightning 14407 | -5/Hub_04(d) | Found Prototype Processor 14407 | -5/Hub_04(d) | Identified Exp. Targeting Computer 14431 | -5/Hub_04(d) | Build established: Scavenger-Tank 14537 | -5/Hub_04(d) | Spotted Lightning 14537 | -5/Hub_04(d) | Network Hub disabled 14537 | -5/Hub_04(d) | Spotted Lightning 14537 | -5/Hub_04(d) | Spotted Lightning 14554 | -5/Hub_04(d) | Destroyed Lightning 14564 | -5/Hub_04(d) | Reached level 24 14564 | -5/Hub_04(d) | Destroyed Lightning 14574 | -5/Hub_04(d) | Destroyed Lightning 14577 | -5/Hub_04(d) | Upgraded with Utility slot (x1) 14588 | -5/Hub_04(d) | Found Prototype Device 14588 | -5/Hub_04(d) | Identified Exp. Phase Shifter 14591 | -5/Hub_04(d) | Upgraded with Power slot (x1) 14651 | -5/Hub_04(d) | Entered Factory 15011 | -4/Factory | Identified exit to Upper Caves 15011 | -4/Factory | Identified exit to Armory 15266 | -4/Factory | Entered Upper Caves 15268 | -4/Upper Caves | Reached level 25 15577 | -4/Upper Caves | Encountered a Warlord checkpoint 15660 | -4/Upper Caves | Identified exit to Upper Caves 15660 | -4/Upper Caves | Discovered exit to Upper Caves (range 12) 15728 | -4/Upper Caves | Entered another Upper Caves area 16037 | -4/Upper Caves | Found Alien Artifact 16037 | -4/Upper Caves | Identified Dimensional Node Initializer 16037 | -4/Upper Caves | Initialized slip node 16079 | -4/Upper Caves | Identified exit to Zhirov 16079 | -4/Upper Caves | Discovered exit to Zhirov (range 8) 16136 | -4/Upper Caves | Entered Zhirov 16136 | -4/Zhirov | Identified exit to Proximity Caves 16136 | -4/Zhirov | Discovered exit to Proximity Caves (range 3) 16165 | -4/Zhirov | Met Zhirov 16204 | -4/Zhirov | Learned location of Quarantine (-3) 16204 | -4/Zhirov | Learned location of Testing (-2) 16204 | -4/Zhirov | Learned location of Command (-1) 16213 | -4/Zhirov | Zhirov requested help retrieving the SGEMP Prototype 16241 | -4/Zhirov | Found Alien Artifact 16241 | -4/Zhirov | Identified Integrated Dissipator 16241 | -4/Zhirov | Installed Integrated Dissipator, increased core heat dissipation (+20) 16265 | -4/Zhirov | Found Alien Artifact 16487 | -4/Zhirov | Entered Proximity Caves 16489 | -3/Proximity Caves | Reached level 26 16688 | -3/Proximity Caves | Build established: Generator-Tank 16925 | -3/Proximity Caves | Identified exit to Research 16925 | -3/Proximity Caves | Discovered exit to Research (range 10) 16958 | -3/Proximity Caves | Entered Research 16960 | -3/Research | Reached level 27 16963 | -3/Research | Upgraded with Utility slot (x1) 17404 | -3/Research | Identified Transdimensional Reconstructor 17683 | -3/Research | Fabricated Hvy. Gatling Laser (x1) 17785 | -3/Research | Identified exit to Research 17785 | -3/Research | Identified exit to Quarantine 17785 | -3/Research | Reached level 28 18255 | -3/Research | Fabricated Hvy. Gatling Laser (x1) 18304 | -3/Research | Found Prototype Processor 18304 | -3/Research | Identified Exp. Terrain Scan Processor 18445 | -3/Research | Cargo convoy interrupted 18732 | -3/Research | Entered Quarantine 18811 | -3/Quarantine | Cryocooling Duct disabled 18826 | -3/Quarantine | Ambient heat levels rising (+20) 18826 | -3/Quarantine | Non-combat units ordered to evacuate 18918 | -3/Quarantine | Found Transdimensional Reconstructor 19087 | -3/Quarantine | Reached level 29 19336 | -3/Quarantine | Found Alien Artifact 19336 | -3/Quarantine | Identified Subatomic Replicator 19352 | -3/Quarantine | Used Subatomic Replicator to replicate Hvy. Antimatter Reactor 19443 | -3/Quarantine | Found Alien Reactor 19443 | -3/Quarantine | Identified Matter Drive 19802 | -3/Quarantine | Found Alien Energy Cannon 19802 | -3/Quarantine | Identified Core Cannon 20282 | -3/Quarantine | Entered Research 20284 | -2/Research | Reached level 30 20308 | -2/Research | Spotted B-90 Cyclops 20315 | -2/Research | Destroyed B-90 Cyclops 20454 | -2/Research | Upgraded with Weapon slot (x1) 20776 | -2/Research | Build established: Generator-Executioner 21194 | -2/Research | Reached level 31 21249 | -2/Research | Destroyed 7 combat bots 21910 | -2/Research | Fabricated Hvy. Gatling Laser (x1) 21981 | -2/Research | Found Prototype Device 21981 | -2/Research | Identified Exp. Shock Absorption System 22001 | -2/Research | Identified exit to Testing 22159 | -2/Research | Found Prototype Device 22159 | -2/Research | Identified Adv. EM Disruption Field 22252 | -2/Research | Entered Testing 22336 | -2/Testing | Reached level 32 22392 | -2/Testing | Found Prototype Ballistic Gun 22392 | -2/Testing | Identified Hyp. Multirail 22458 | -2/Testing | Found Prototype Device 22458 | -2/Testing | Identified AEGIS Remote Shield 22704 | -2/Testing | Found Prototype Device 22704 | -2/Testing | Identified Exp. Transmission Jammer 22778 | -2/Testing | Spotted Striker 22783 | -2/Testing | Spotted Striker 22835 | -2/Testing | Destroyed Striker 22845 | -2/Testing | Destroyed Striker 22886 | -2/Testing | Spotted Alpha 7 22890 | -2/Testing | Destroyed Alpha 7 22919 | -2/Testing | Stole the SGEMP Prototype 23386 | -2/Testing | Found Prototype Energy Cannon 23386 | -2/Testing | Identified Imp. Potential Cannon 23555 | -2/Testing | Spotted PY-MMNP9ZLFKF 23561 | -2/Testing | Destroyed PY-MMNP9ZLFKF 23587 | -2/Testing | Identified exit to Access 23587 | -2/Testing | Discovered exit to Access (range 19) 23610 | -2/Testing | Spotted Alpha 7 23612 | -2/Testing | Spotted P9-UQ7(L) 23644 | -2/Testing | Destroyed Alpha 7 23839 | -2/Testing | Spotted Fortress 23996 | -2/Testing | Core integrity fell below 50% 24103 | -2/Testing | Destroyed Fortress 24301 | -2/Testing | Identified exit to Section 7 24301 | -2/Testing | Discovered exit to Section 7 (range 18) 24328 | -2/Testing | Entered Section 7 24330 | -2/Section 7 | Reached level 33 24566 | -2/Section 7 | Found Prototype Processor 24566 | -2/Section 7 | Identified Exp. Core Analyzer 24786 | -2/Section 7 | Found Alien Artifact 24786 | -2/Section 7 | Identified Integrity Redistributor 24786 | -2/Section 7 | Used Integrity Redistributor, redistributed integrity from core (-16) 25025 | -2/Section 7 | Spotted B-90 Cyclops 25090 | -2/Section 7 | Found Alien Artifact 25090 | -2/Section 7 | Identified Core Reset Matrix 25090 | -2/Section 7 | Used Core Reset Matrix 25094 | -2/Section 7 | Sensed 18 artifacts in vicinity 25139 | -2/Section 7 | Found Unknown Device 25139 | -2/Section 7 | Identified Quantum Capacitor 25165 | -2/Section 7 | Destroyed B-90 Cyclops 25426 | -2/Section 7 | Destroyed 7 combat bots 25478 | -2/Section 7 | Found Integrated Mediator 25478 | -2/Section 7 | Installed Integrated Mediator, increased core attachment efficiency. 25605 | -2/Section 7 | Discovered exit to Access (range 19) 25610 | -2/Section 7 | Found Integrated Dissipator 25610 | -2/Section 7 | Installed Integrated Dissipator, increased core heat dissipation (+20) 25684 | -2/Section 7 | Destroyed 10 combat bots 25745 | -2/Section 7 | Spotted Alpha 7 25745 | -2/Section 7 | Spotted Alpha 7 25764 | -2/Section 7 | Destroyed Alpha 7 25771 | -2/Section 7 | Destroyed Alpha 7 25792 | -2/Section 7 | Found Prototype Energy Gun 25792 | -2/Section 7 | Identified Enh. Gamma Rifle 25841 | -2/Section 7 | Spotted B-99 Colossus 25855 | -2/Section 7 | Destroyed B-99 Colossus 25940 | -2/Section 7 | Found Integrated Dissipator 25940 | -2/Section 7 | Installed Integrated Dissipator, increased core heat dissipation (+20) 25943 | -2/Section 7 | Found Integrated Dissipator 25943 | -2/Section 7 | Installed Integrated Dissipator, increased core heat dissipation (+20) 26008 | -2/Section 7 | Found LRC Energy Well 26008 | -2/Section 7 | Installed LRC Energy Well, increased energy storage capacity (+250) 26017 | -2/Section 7 | Found LRC Energy Well 26017 | -2/Section 7 | Installed LRC Energy Well, increased energy storage capacity (+250) 26020 | -2/Section 7 | Found LRC Storage 26020 | -2/Section 7 | Installed LRC Storage, increased inventory capacity (+2) 26164 | -2/Section 7 | Found Integrated Dissipator 26164 | -2/Section 7 | Installed Integrated Dissipator, increased core heat dissipation (+20) 26320 | -2/Section 7 | Reached level 34 26341 | -2/Section 7 | Destroyed 8 combat bots 26454 | -2/Section 7 | Entered Access 26455 | -1/Access | Attacked by Zhirov 26455 | -1/Access | Destroyed Svarog 26465 | -1/Access | Destroyed Zhirov 26469 | -1/Access | Destroyed Perun 27049 | -1/Access | Energy Cycler disabled 27287 | -1/Access | Identified exit to Surface 27383 | -1/Access | Reached level 35 27391 | -1/Access | Upgraded with Utility slot (x1) 27530 | -1/Access | Destroyed 7 combat bots 27804 | -1/Access | Garrison activated, responded to threat 27853 | -1/Access | Destroyed 7 combat bots 28051 | -1/Access | Identified exit to Command 28051 | -1/Access | Discovered exit to Command (range 15) 28096 | -1/Access | Spotted B-99 Colossus 28562 | -1/Access | Entered Command 28564 | -1/Command | Reached level 36 28658 | -1/Command | Spotted B-99 Colossus 28758 | -1/Command | Destroyed B-99 Colossus 28898 | -1/Command | Spotted B-99 Colossus 28906 | -1/Command | Destroyed B-99 Colossus 29312 | -1/Command | First assault squad dispatched 29333 | -1/Command | Incoming assault squad redirected 29996 | -1/Command | Spotted Executioner 29996 | -1/Command | Spotted Executioner 29998 | -1/Command | Spotted Striker 30000 | -1/Command | Spotted Alpha 7 30009 | -1/Command | Destroyed Striker 30013 | -1/Command | Destroyed Executioner 30013 | -1/Command | Destroyed Executioner 30021 | -1/Command | Destroyed Alpha 7 30045 | -1/Command | Spotted Striker 30046 | -1/Command | Destroyed Striker 30057 | -1/Command | Spotted Alpha 7 30057 | -1/Command | Destroyed Alpha 7 30060 | -1/Command | Spotted Executioner 30061 | -1/Command | Destroyed Executioner 30062 | -1/Command | Spotted Executioner 30065 | -1/Command | Destroyed Executioner 30086 | -1/Command | Destroyed 9 combat bots 30086 | -1/Command | Found Prototype Energy Gun 30086 | -1/Command | Identified Enh. Gamma Rifle 30172 | -1/Command | Disengaged cave seal 30172 | -1/Command | Assembled emerged from the dark tunnel 30208 | -1/Command | Spotted M Guard 30208 | -1/Command | Spotted M Guard 30208 | -1/Command | Spotted Combat Programmer 30210 | -1/Command | Spotted Combat Programmer 30215 | -1/Command | Destroyed Combat Programmer 30222 | -1/Command | Destroyed Combat Programmer 30269 | -1/Command | Destroyed M Guard 30277 | -1/Command | Destroyed M Guard 30277 | -1/Command | All MAIN.C guards destroyed 30391 | -1/Command | Reached level 37 30546 | -1/Command | Met MAIN.C 30547 | -1/Command | 0b10 Conduit disabled 30562 | -1/Command | Destroyed MAIN.C Shell 30565 | -1/Command | MAIN.C activated Command garrisons 30614 | -1/Command | Allies destroyed MAIN.C 30616 | -1/Command | Discovered exit to Surface (range 45) 30616 | -1/Command | Discovered exit to Surface (range 92) 30616 | -1/Command | Extracted map data and part IDs from MAIN.C's data core 30837 | -1/Command | Found Vortex Chain Reactor 30841 | -1/Command | Found Zero-point Reactor 30997 | -1/Command | Warped through subspace to slip node 30997 | -1/Command | Identified exit to Access_0 30997 | -1/Command | Discovered exit to Access_0 (range 5) 31017 | -1/Command | Entered Access_0 31018 | -1/Access_0 | Sensed 3 artifacts in vicinity 31019 | -1/Access_0 | Reached level 38 31021 | -1/Access_0 | Met Architect 31026 | -1/Access_0 | Destroyed A8 31030 | -1/Access_0 | Architect warped through subspace 31067 | -1/Access_0 | Architect warped through subspace 31095 | -1/Access_0 | Architect warped through subspace 31126 | -1/Access_0 | Architect warped through subspace 31154 | -1/Access_0 | Architect warped through subspace 31186 | -1/Access_0 | Architect warped through subspace 31189 | -1/Access_0 | Subspace Access Node disabled 31222 | -1/Access_0 | Architect warped through subspace 31269 | -1/Access_0 | Architect warped through subspace 31316 | -1/Access_0 | Architect warped through subspace 31357 | -1/Access_0 | Architect warped through subspace 31395 | -1/Access_0 | A6 warped into view 31395 | -1/Access_0 | Architect warped through subspace 31406 | -1/Access_0 | Destroyed A6 31448 | -1/Access_0 | Architect warped through subspace 31484 | -1/Access_0 | Architect warped through subspace 31522 | -1/Access_0 | Architect warped through subspace 31564 | -1/Access_0 | Architect warped through subspace 31609 | -1/Access_0 | Architect warped through subspace 31638 | -1/Access_0 | Architect warped through subspace 31641 | -1/Access_0 | Found Exp. Powered Armor 31664 | -1/Access_0 | Architect warped through subspace 31686 | -1/Access_0 | Architect warped through subspace 31708 | -1/Access_0 | Architect warped through subspace 31728 | -1/Access_0 | Architect warped through subspace 31749 | -1/Access_0 | Architect warped through subspace 31770 | -1/Access_0 | Architect warped through subspace 31790 | -1/Access_0 | Architect warped through subspace 31817 | -1/Access_0 | Architect warped through subspace 31828 | -1/Access_0 | Found Integrated Mediator 31828 | -1/Access_0 | Installed Integrated Mediator, increased core attachment efficiency. 31844 | -1/Access_0 | Architect warped through subspace 31868 | -1/Access_0 | Architect warped through subspace 31876 | -1/Access_0 | Subspace Access Node disabled 31893 | -1/Access_0 | Architect warped through subspace 31914 | -1/Access_0 | Architect warped through subspace 31927 | -1/Access_0 | A5 warped into view 31927 | -1/Access_0 | Destroyed A5 31936 | -1/Access_0 | Architect warped through subspace 31964 | -1/Access_0 | Architect warped through subspace 31984 | -1/Access_0 | Architect warped through subspace 32006 | -1/Access_0 | Architect warped through subspace 32026 | -1/Access_0 | Architect warped through subspace 32030 | -1/Access_0 | Found Prototype Device 32030 | -1/Access_0 | Identified Desublimator 32046 | -1/Access_0 | Architect warped through subspace 32066 | -1/Access_0 | Architect warped through subspace 32129 | -1/Access_0 | Destroyed A2 32133 | -1/Access_0 | Architect warped through subspace 32138 | -1/Access_0 | Extracted Singularity Gate Test 138-C access codes from A2's data core 32157 | -1/Access_0 | Architect warped through subspace 32187 | -1/Access_0 | Architect warped through subspace 32221 | -1/Access_0 | Architect warped through subspace 32226 | -1/Access_0 | Found Hpw. Transdimensional Reconstructor 32260 | -1/Access_0 | Architect warped through subspace 32296 | -1/Access_0 | Architect warped through subspace 32308 | -1/Access_0 | Found Sigix Corpse 32332 | -1/Access_0 | Architect warped through subspace 32361 | -1/Access_0 | Started Test 138-B, establishing a local singularity 32363 | -1/Access_0 | Singularity Gate disabled 32372 | -1/Access_0 | Singularity Gate disabled 32373 | -1/Access_0 | Architect warped through subspace 32417 | -1/Access_0 | Architect warped through subspace 32469 | -1/Access_0 | Architect warped through subspace 32475 | -1/Access_0 | A4 warped into view 32480 | -1/Access_0 | Destroyed A4 32510 | -1/Access_0 | Architect warped through subspace 32553 | -1/Access_0 | Architect warped through subspace 32590 | -1/Access_0 | Architect warped through subspace 32635 | -1/Access_0 | Architect warped through subspace 32673 | -1/Access_0 | Architect warped through subspace 32706 | -1/Access_0 | Architect warped through subspace 32739 | -1/Access_0 | Architect warped through subspace 32772 | -1/Access_0 | Architect warped through subspace 32800 | -1/Access_0 | Architect warped through subspace 32827 | -1/Access_0 | Architect warped through subspace 32853 | -1/Access_0 | Architect warped through subspace 32888 | -1/Access_0 | Architect warped through subspace 32918 | -1/Access_0 | Architect warped through subspace 32946 | -1/Access_0 | Architect warped through subspace 32983 | -1/Access_0 | Architect warped through subspace 33019 | -1/Access_0 | Architect warped through subspace 33044 | -1/Access_0 | Architect warped through subspace 33072 | -1/Access_0 | Architect warped through subspace 33092 | -1/Access_0 | Architect warped through subspace 33095 | -1/Access_0 | Subspace Access Node disabled 33115 | -1/Access_0 | Architect warped through subspace 33141 | -1/Access_0 | Architect warped through subspace 33162 | -1/Access_0 | Architect warped through subspace 33182 | -1/Access_0 | Core integrity fell below 50% 33185 | -1/Access_0 | Architect warped through subspace 33205 | -1/Access_0 | Architect warped through subspace 33220 | -1/Access_0 | Architect warped through subspace 33236 | -1/Access_0 | Architect warped through subspace 33248 | -1/Access_0 | Architect warped through subspace 33266 | -1/Access_0 | Architect warped through subspace 33277 | -1/Access_0 | Architect warped through subspace 33300 | -1/Access_0 | Core integrity fell below 20% 33309 | -1/Access_0 | Architect warped through subspace 33318 | -1/Access_0 | Architect warped through subspace 33327 | -1/Access_0 | Architect warped through subspace 33339 | -1/Access_0 | Architect warped through subspace 33347 | -1/Access_0 | Architect warped through subspace 33365 | -1/Access_0 | Architect warped through subspace 33379 | -1/Access_0 | Architect warped through subspace 33385 | -1/Access_0 | Architect warped through subspace 33395 | -1/Access_0 | Architect warped through subspace 33409 | -1/Access_0 | Found Exp. Weapon Cycler 33412 | -1/Access_0 | Architect warped through subspace 33429 | -1/Access_0 | Architect warped through subspace 33448 | -1/Access_0 | Architect warped through subspace 33450 | -1/Access_0 | Subspace Access Node disabled 33462 | -1/Access_0 | Destroyed by Architect with Modified Sigix Sheargun Last Messages --------------- 33408_ Penetrated by Quantum Shear. 33411_ System corrupted: Hvy. Gatling Laser rejected. Architect warps through subspace. 33415_ Penetrated by Quantum Shear. 33420_ Quantum Shear penetrates Wall. 33422_ Penetrated by Quantum Shear. 33427_ Quantum Shear penetrates Earth. Architect warps through subspace. 33432_ Quantum Shear penetrates Wall. 33434_ Penetrated by Quantum Shear. 33435_ I5ZBKOUSLJN%MB QUP3RPLZ Q NBW 33437_ Penetrated by Quantum Shear. 33437_ Quantum Shear penetrates Wall. 33439_ Penetrated by Quantum Shear. 33447_ System corrupted: Lrn. Gatling Laser failed to cycle. Architect warps through subspace. 33448_ Quantum Shear penetrates Wall. 33455_ Penetrated by Quantum Shear. 33457_ Quantum Shear penetrates Wall. 33459_ Penetrated by Quantum Shear. Map ----- +----------------------------------------------------+ | # ## #############################??? | | ######"" #### ############## ##############??? | | ######"" #### ############## ###############?? | | ### #" ##### ########## ### ###############?? | | ### "" ""#" ######### " ############ ?? | | ## """% % ###### "" ########### ?? | | ## "" % "# # " ########### #? | | # % % "";;;;!;* ########### #? | | %% %!! != ########### #? | | """% % %= ]! ######## # #? | | ## #""" "";;;!!=%] ####### #? | | ### ## # ;[= # ####### ### | | ### ## ## ;; # ###### ### | | #### ####### ## ;; ;; ###### ##? | | ##### ########### ##;;; ;;" ###### | | ###### ############# ## ; # ####### ? | | ##################### ## ; ;## ## ### | | #####################; ; #"# | | ###################### ; ## ## | | #####################; ; ## ##### | | #####################; ;" ## ######## | | ################### ; ##### ## ###### | | ? ?################## ;; ;#### ## ####### | | ?? ###### ########## ; ;;### ### ######## | | ??? ##### ##########;;;; #### ############## | | ??#####" "#"###;;;; @ ;;; ############# | | ????## 0" ;;;;;# ############### | | ?#?#?## "" ; ################## | | ######### "###;;;### ################### | | ###??###?#? ###### ################## | | ########## ??##### #########??########## #"" | | # ? #####? ####?# ##################### #### | | ? #?##? #?#### #?################# #### | | # ? ### ####?# #?#####?########## #### # | | #?## ??## ###### #####?# ## # | | ###### # ### ? ? ?### ######### ## | | ###### ## ? ? ?? ?######### ##### # | | ###### ?#### ######### ##### ## | | #### ##?#### ######?# ##### ### | | ### ##?##? ##? ######### ########## | | ## ## ? ????### ######### ######## | | ### ## ? ?### ############ ######## | | ########?? ?? ## ############# ####### | | #########?? ? ## ####################### | | ######## ?? ? ## ####################### | | ######## #?????? ## ############# | | ###?#### ###???? ###### | | ######## ### ?? ?############# | | ######## ## ? ####?#?######## ###"" # ### | | ######## ??####?########## #"" # ### | +----------------------------------------------------+ Best States ------------- Heat Dissipation 269 Energy Generation 147 Energy Capacity 1800 Matter Stores 300 Matter Capacity 300 Sight Range 20 Robot Scan Range 40 Terrain Scan Range 20 Terrain Scan Density 510 Jamming Range 12 Power Amplification 60 Armor Coverage 550 Resistance: KI 65 Resistance: TH 65 Resistance: EX 100 Resistance: EM 100 Resistance: I 35 Resistance: S 35 Resistance: P 35 Weapon Cycling 30 Phase Shifting 20 Evasion (%) 40 Core Analysis 8 Armor Integrity Analysis 30 Recoil Reduction 4 Matter Filtering 50 Particle Charging 30 Offensive Hacking 20 Item Schematics ----------------- Prc. Energy Filter | -2/Section 7 | Archive Exp. Gyrokinetic Inverter | -2/Section 7 | Archive Exp. Reaction Control System | -2/Section 7 | Archive Mni. Smartbomb Launcher | -2/Section 7 | Archive Robot Schematics ------------------ D-83 Annihilator | -2/Section 7 | Archive E-15 Imp | -2/Section 7 | Archive H-88 Terminator | -2/Section 7 | Archive X-87 Electro | -2/Section 7 | Archive Fabricated ------------ Hvy. Gatling Laser | x1 | -3/Research Hvy. Gatling Laser | x1 | -3/Research Hvy. Gatling Laser | x1 | -2/Research Alien Tech Used ----------------- Dimensional Node Initializer Integrated Dissipator Subatomic Replicator Matter Drive Core Cannon Integrity Redistributor Core Reset Matrix Integrated Mediator LRC Energy Well LRC Storage Transdimensional Reconstructor Achievements -------------- None Challenges ------------ None RPGLIKE | -11 -10 -10 -9 -9 -9 -8 -8 -7 -7 -6 -6 -6 -6 -5 -5 -5 -5 -5 -5 -5 -5 -4 -4 -4 -4 -3 -3 -3 -2 -2 -2 -1 -1 -1 --------- Run | Scr Mat Min Mat Min Exi Min Mat Fac DSF Fac Low Low Dat Pro Fac Was Fac Ext Cet Arc Hub Fac Upp Upp Zhi Pro Res Qua Res Tes Sec Acc Com Ac0 Levels Raised 37 | . . . 5 . . 1 3 1 1 3 1 . 1 1 2 . 1 1 . 1 1 . 1 . . 1 2 1 2 1 2 1 2 1 XP Earned 62224 | 6000 170 1039 6324 1150 200 899 4675 1500 1650 3869 1405 910 604 1165 3881 179 607 1427 1186 301 1411 1262 426 286 220 1380 3163 1262 3290 1896 1796 2528 3419 744 XP Spent 61500 | 5840 . . 5860 1100 . 1900 4710 1400 1590 4300 . . . 2000 5350 . . 800 1800 . 3700 . 1300 . . . 2900 3250 3000 1000 2000 3200 1300 3200 Upgrades 112 | 17 . . 21 1 . 2 13 1 5 8 . . . 1 5 . . 1 3 . 2 . 8 . . . 1 2 3 2 1 1 2 12 Power Slot 3 | . . . 1 . . . . . . . . . . . . . . 1 . . 1 . . . . . . . . . . . . . Propulsion Slot 3 | 1 . . . . . 2 . . . . . . . . . . . . . . . . . . . . . . . . . . . . Utility Slot 10 | 2 . . . 1 . . . 1 . 1 . . . 1 1 . . . . . 1 . . . . . 1 . . . . 1 . . Weapon Slot 5 | 1 . . 2 . . . 1 . . . . . . . . . . . . . . . . . . . . . 1 . . . . . Core Integrity 18 | . . . . . . . 4 . . . . . . . . . . . . . . . 4 . . . . . . . . . . 10 Heat Dissipation 24 | . . . 13 . . . 5 . 3 . . . . . . . . . . . . . 1 . . . . . . 2 . . . . Energy Generation 1 | . . . . . . . . . . 1 . . . . . . . . . . . . . . . . . . . . . . . . Energy Storage 2 | . . . . . . . . . . 2 . . . . . . . . . . . . . . . . . . . . . . . . Inventory Capacity 8 | 4 . . . . . . . . . . . . . . 1 . . . . . . . . . . . . 2 . . 1 . . . Sight Range 4 | 2 . . . . . . 2 . . . . . . . . . . . . . . . . . . . . . . . . . . . Sensor Range 11 | 5 . . 4 . . . . . . 2 . . . . . . . . . . . . . . . . . . . . . . . . Terrain Scan Density 5 | 2 . . . . . . . . . . . . . . . . . . . . . . 3 . . . . . . . . . . . Ranged Accuracy 6 | . . . 1 . . . . . . . . . . . . . . . 3 . . . . . . . . . . . . . . 2 KI Resistance % 4 | . . . . . . . . . 1 . . . . . 1 . . . . . . . . . . . . . . . . . 2 . TH Resistance % 4 | . . . . . . . . . 1 . . . . . 1 . . . . . . . . . . . . . 2 . . . . . TH Damage % 4 | . . . . . . . 1 . . 2 . . . . 1 . . . . . . . . . . . . . . . . . . . Protomatter Created 10962 | . . 36 189 . . 57 256 . 76 275 203 99 . . 346 99 . 93 209 172 678 263 98 50 . 73 840 411 680 895 1411 908 1599 946 Integrity Restored 10948 | . . 105 286 65 . . 205 . . 241 223 48 . 36 366 . 97 307 580 60 489 55 82 34 . 47 271 149 394 531 1236 622 1293 3126 Core 7279 | . . 36 161 40 . . 178 . . 161 121 26 . 14 187 . 28 46 88 13 294 32 53 13 . 26 88 86 268 314 891 409 969 2737 Parts 3669 | . . 69 125 25 . . 27 . . 80 102 22 . 22 179 . 69 261 492 47 195 23 29 21 . 21 183 63 126 217 345 213 324 389 Protomatter Decayed 17610 | . . . 89 108 . . 185 . 46 123 178 52 . . 247 164 68 226 131 151 709 170 61 22 . 55 966 434 538 777 834 496 10498 282 Game ------ Seed MatterThrowingDisintegrator Manual? 0 Play Time 04:01:48 Cumulative 252.3 hours Start 2022.06.13 @ 16:23:49 End 2022.06.13 @ 22:45:55 Sessions 3 Manual Loads 0 Difficulty Explorer Special Mode Winter2019/RPGLIKE Game No. 85 Rogue 0 Adventurer 1 Explorer 84 Win Type - Total 16 Types 9/0/4/3/0/0/0/0/0 Lore% 87 Gallery% 87 Achievement% 74 Wizard Run 0 Options --------- ASCII 0 Keyboard 1 Movement Numpad Keybinds 0 Fullscreen 0 Font 14/Terminus Map View 76x50 Tactical HUD 1 Map Filters BRIGHTNESS(150) Filters NONE Steam 1 RUN: eb80df42-f08d-46dd-a563-ef1b778b9592